Workbook

Sheet PORTADA

Sheet DEFINICION INDICADORES
B6: DEFINICION BASES E INDICADORES
A8: Nº | B8: TRONCOS-BASES | E8: % UMBRAL
A9: 1 | B9: ALIMENTACION | E9: 0.75
A10: 2 | B10: SANIDAD | E10: 0.8
A11: 3 | B11: INSTALACIONES | E11: 0.75
A12: 4 | B12: BIENESTAR | E12: 0.7
A13: 5 | B13: FORMACION Y REGISTRO | E13: 0.65
B15: EXPLOTACION | E15: CEBO CORDEROS
B17: BASES | C17: Nº SE | D17: Nº TR | E17: INDICADORES | F17: POND | J17: PESO | K17: UMBRAL | L17: MINIMO EXIG | M17: MIN POND | N17: MAX PON | O17: UMBRAL | P17: MEDIA | Q17: MEDIA POND | R17: MIN | S17: MAX
A18: =A9 -> 1 | B18: =IF(B9="","",B9) -> ALIMENTACION | C18: 1 | D18: 1 | E18: Programa adecuado y adaptado | F18: 6 | H18: =IF(A18="","",A18) -> 1 | I18: =IF(B18="","",B18) -> ALIMENTACION | J18: =SUM(F18:F22) -> 23 | K18: =IF(E9="","",E9) -> 0.75 | L18: 3 | M18: =L18*F18 -> 18 | N18: =F18*4 -> 24 | O18: =R18/S18 -> 0.75 | P18: ='[1]VALORES MEDIOS'!C6 -> 2.912698413 | Q18: =IF(P18="","",P18*F18) -> 17.47619048 | R18: =SUM(M18:M22)/100 -> 0.69 | S18: =SUM(N18:N22)/100 -> 0.92
C19: 2 | D19: 1 | E19: Depósitos y silos pienso | F19: 4 | L19: 3 | M19: =L19*F19 -> 12 | N19: =F19*4 -> 16 | P19: ='[1]VALORES MEDIOS'!C7 -> 3.055555556 | Q19: =IF(P19="","",P19*F19) -> 12.22222222
C20: 3 | D20: 1 | E20: Agua de bebida | F20: 5 | L20: 3 | M20: 15 | N20: 20 | P20: ='[1]VALORES MEDIOS'!C8 -> 2.753968254 | Q20: 13.76984127
C21: 4 | D21: 1 | E21: Depósitos y conducción de agua | F21: 4 | L21: 3 | M21: 12 | N21: 16 | P21: ='[1]VALORES MEDIOS'!C9 -> 2.373015873 | Q21: 9.492063492
C22: 5 | D22: 1 | E22: Automatización adecuada | F22: 4 | L22: 3 | M22: 12 | N22: 16 | P22: ='[1]VALORES MEDIOS'!C10 -> 2.738095238 | Q22: 10.95238095
A23: =A10 -> 2 | B23: =IF(B10="","",B10) -> SANIDAD | C23: 1 | D23: 2 | E23: Ratios mortalidad y desvieje | F23: 6 | H23: =IF(A23="","",A23) -> 2 | I23: =IF(B23="","",B23) -> SANIDAD | J23: =SUM(F23:F27) -> 25 | K23: =IF(E10="","",E10) -> 0.8 | L23: 3 | M23: 18 | N23: 24 | O23: =R23/S23 -> 0.7 | P23: ='[1]VALORES MEDIOS'!C11 -> 2.698412698 | Q23: 16.19047619 | R23: =SUM(M23:M27)/100 -> 0.7 | S23: 1
C24: 2 | D24: 2 | E24: Incidencia de abortos | F24: 6 | L24: 3 | M24: 18 | N24: 24 | P24: ='[1]VALORES MEDIOS'!C12 -> 2.849206349 | Q24: 17.0952381
C25: 3 | D25: 2 | E25: Plan Sanitario | F25: 5 | L25: 3 | M25: 15 | N25: 20 | P25: ='[1]VALORES MEDIOS'!C13 -> 2.714285714 | Q25: 13.57142857
C26: 4 | D26: 2 | E26: Incidencia de enfermedades crónicas | F26: 5 | L26: 2 | M26: 10 | N26: 20 | P26: ='[1]VALORES MEDIOS'!C14 -> 2.373015873 | Q26: 11.86507937
C27: 5 | D27: 2 | E27: Control animales extraños | F27: 3 | L27: 3 | M27: 9 | N27: 12 | P27: ='[1]VALORES MEDIOS'!C15 -> 2.53968254 | Q27: 7.619047619
A28: =A11 -> 3 | B28: =IF(B11="","",B11) -> INSTALACIONES | C28: 1 | D28: 3 | E28: Comederos y forrajeras | F28: 4 | H28: =IF(A28="","",A28) -> 3 | I28: =IF(B28="","",B28) -> INSTALACIONES | J28: =SUM(F28:F32) -> 21 | K28: =IF(E11="","",E11) -> 0.75 | L28: 2 | M28: 8 | N28: 16 | O28: =R28/S28 -> 0.619047619 | P28: ='[1]VALORES MEDIOS'!C16 -> 3.079365079 | Q28: 12.31746032 | R28: =SUM(M28:M32)/100 -> 0.52 | S28: 0.84
C29: 2 | D29: 3 | E29: Bebederos | F29: 3 | L29: 2 | M29: 6 | N29: 12 | P29: ='[1]VALORES MEDIOS'!C17 -> 2.746031746 | Q29: 8.238095238
C30: 3 | D30: 3 | E30: Carga Ambiental | F30: 4 | L30: 2 | M30: 8 | N30: 16 | P30: ='[1]VALORES MEDIOS'!C18 -> 2.515873016 | Q30: 10.06349206
C31: 4 | D31: 3 | E31: Aislamiento cubierta | F31: 5 | L31: 3 | M31: 15 | N31: 20 | P31: ='[1]VALORES MEDIOS'!C19 -> 2.507936508 | Q31: 12.53968254
C32: 5 | D32: 3 | E32: Dimensionado y Ventilación | F32: 5 | L32: 3 | M32: 15 | N32: 20 | P32: ='[1]VALORES MEDIOS'!C20 -> 2.563492063 | Q32: 12.81746032
A33: =A12 -> 4 | B33: =IF(B12="","",B12) -> BIENESTAR | C33: 1 | D33: 4 | E33: Densidad animal | F33: 5 | H33: =IF(A33="","",A33) -> 4 | I33: =IF(B33="","",B33) -> BIENESTAR | J33: =SUM(F33:F37) -> 19 | K33: =IF(E12="","",E12) -> 0.7 | L33: 2 | M33: 10 | N33: 20 | O33: =R33/S33 -> 0.5394736842 | P33: ='[1]VALORES MEDIOS'!C21 -> 2.73015873 | Q33: 13.65079365 | R33: =SUM(M33:M37)/100 -> 0.41 | S33: 0.76
C34: 2 | D34: 4 | E34: Calidad de cama | F34: 4 | L34: 2 | M34: 8 | N34: 16 | P34: ='[1]VALORES MEDIOS'!C22 -> 2.674603175 | Q34: 10.6984127
C35: 3 | D35: 4 | E35: Alteración conducta. Estrés | F35: 3 | L35: 3 | M35: 9 | N35: 12 | P35: ='[1]VALORES MEDIOS'!C23 -> 2.80952381 | Q35: 8.428571429
C36: 4 | D36: 4 | E36: Estado de lana y pezuñas | F36: 3 | L36: 2 | M36: 6 | N36: 12 | P36: ='[1]VALORES MEDIOS'!C24 -> 3.119047619 | Q36: 9.357142857
C37: 5 | D37: 4 | E37: Estado externo animales, CC | F37: 4 | L37: 2 | M37: 8 | N37: 16 | P37: ='[1]VALORES MEDIOS'!C25 -> 2.968253968 | Q37: 11.87301587
A38: =A13 -> 5 | B38: =IF(B13="","",B13) -> FORMACION Y REGISTRO | C38: 1 | D38: 5 | E38: Libro de Explotación actualizado | F38: 2 | H38: =IF(A38="","",A38) -> 5 | I38: =IF(B38="","",B38) -> FORMACION Y REGISTRO | J38: =SUM(F38:F42) -> 12 | K38: =IF(E13="","",E13) -> 0.65 | L38: 3 | M38: 6 | N38: 8 | O38: =R38/S38 -> 0.6666666667 | P38: ='[1]VALORES MEDIOS'!C26 -> 3.206349206 | Q38: 6.412698413 | R38: =SUM(M38:M42)/100 -> 0.32 | S38: 0.48
C39: 2 | D39: 5 | E39: Formación del Ganadero | F39: 1 | L39: 2 | M39: 2 | N39: 4 | P39: ='[1]VALORES MEDIOS'!C27 -> 2.698412698 | Q39: 2.698412698
C40: 3 | D40: 5 | E40: Gestión Medioambiental | F40: 1 | L40: 3 | M40: 3 | N40: 4 | P40: ='[1]VALORES MEDIOS'!C28 -> 2.293650794 | Q40: 2.293650794
C41: 4 | D41: 5 | E41: Bioseguridad | F41: 3 | L41: 2 | M41: 6 | N41: 12 | P41: ='[1]VALORES MEDIOS'!C29 -> 2.142857143 | Q41: 6.428571429
C42: 5 | D42: 5 | E42: Carga de Trabajo | F42: 5 | L42: 3 | M42: 15 | N42: 20 | P42: ='[1]VALORES MEDIOS'!C30 -> 2.80952381 | Q42: 14.04761905
B43: =SUM(F18:F42) -> 100
B53: TRONCO "REDUCE"
B55: BASES | C55: Nº SE | D55: Nº TR | E55: INDICADORES | F55: POND | G55: MIN
B56: TRONCO "REDUCE" | C56: 1 | D56: R | E56: Disminucion del uso de piensos medicamentosos | F56: 1 | G56: 3
C57: 2 | D57: R | E57: Uso de antibióticos CATEGORIA D | F57: 1 | G57: 3
C58: 3 | D58: R | E58: Plan-Informe sanitario. Auditorías anuales | F58: 1 | G58: 3
C59: 4 | D59: R | E59: % de animales con tratamiento metafiláctico | F59: 1 | G59: 3
C60: 5 | D60: R | E60: Monitorización de explotación | F60: 1 | G60: 3
F61: =IF(F56="","",SUM(F56:F60)*4) -> 20 | G61: =IF(G56="","",SUM(G56:G60)) -> 15 | H61: =G61/F61 -> 0.75

Sheet ENLACES DATOS
R2: GRANJA | S2: MAXIMO | T2: MEDIO | W2: =IF('INFORME DIAGNOSTICO'!AB13="","",'INFORME DIAGNOSTICO'!AB13) -> INSTALACIONES | X2: =IF(W2="","",VLOOKUP(W2,$Q$3:$V$7,6,FALSE)) -> 3 | AB2: GRANJA | AC2: MAXIMO | AD2: MEDIO | AG2: INFORME EXPLOTACION | AI2: TEXTO PROPUESTO | AJ2: TEXTO ALTERNATIVO | AK2: TEXTO DEFINITIVO
P3: =IF('DEFINICION INDICADORES'!A9="","",'DEFINICION INDICADORES'!A9) -> 1 | Q3: =IF('DEFINICION INDICADORES'!B9="","",'DEFINICION INDICADORES'!B9) -> ALIMENTACION | R3: =IF(J14="","",J14) -> 80 | S3: =IF(K14="","",K14) -> 92 | T3: =IF(L14="","",L14) -> 63.91269841 | V3: =P3 -> 1 | Y3: 1 | Z3: =IF($X$2="","",CONCATENATE(Y3,$X$2)) -> 13 | AA3: =VLOOKUP(Z3,$D$14:$H$38,2,FALSE) -> Comederos y forrajeras | AB3: =VLOOKUP(Z3,$D$14:$H$38,4,FALSE) -> 12 | AC3: =VLOOKUP(Z3,$D$14:$H$38,5,FALSE) -> 16 | AD3: =VLOOKUP(Z3,$D$14:$I$38,6,FALSE) -> 12.31746032 | AG3: =IF(E14="","",E14) -> Programa adecuado y adaptado | AH3: =IF(F14="","",F14) -> 4 | AI3: =IF(AH3="","",VLOOKUP(AH3,AH33:AI37,2,FALSE)) -> Piensos adecuados y suficientes. Buen manejo. Adaptados a las diferentes producciones. Equilibrio nutricional. Cobertura necesidades. Separa machos y hembras | AJ3: =IF('INFORME EXPLOTACION CREAR'!D8="","",'INFORME EXPLOTACION CREAR'!D8) ->  | AK3: =IF(AJ3="",AI3,AJ3) -> Piensos adecuados y suficientes. Buen manejo. Adaptados a las diferentes producciones. Equilibrio nutricional. Cobertura necesidades. Separa machos y hembras
P4: =IF('DEFINICION INDICADORES'!A10="","",'DEFINICION INDICADORES'!A10) -> 2 | Q4: =IF('DEFINICION INDICADORES'!B10="","",'DEFINICION INDICADORES'!B10) -> SANIDAD | R4: =IF(J19="","",J19) -> 46 | S4: =IF(K19="","",K19) -> 100 | T4: =IF(L19="","",L19) -> 66.34126984 | V4: =P4 -> 2 | Y4: 2 | Z4: =IF($X$2="","",CONCATENATE(Y4,$X$2)) -> 23 | AA4: =VLOOKUP(Z4,$D$14:$H$38,2,FALSE) -> Bebederos | AB4: =VLOOKUP(Z4,$D$14:$H$38,4,FALSE) -> 6 | AC4: =VLOOKUP(Z4,$D$14:$H$38,5,FALSE) -> 12 | AD4: =VLOOKUP(Z4,$D$14:$I$38,6,FALSE) -> 8.238095238 | AG4: =IF(E15="","",E15) -> Depósitos y silos pienso | AH4: =IF(F15="","",F15) -> 4 | AI4: =IF(AH4="","",VLOOKUP(AH4,AH38:AI42,2,FALSE)) -> Suficientes depósitos o silos. Limpieza periódica de los mismos. | AJ4: =IF('INFORME EXPLOTACION CREAR'!D9="","",'INFORME EXPLOTACION CREAR'!D9) ->  | AK4: =IF(AJ4="",AI4,AJ4) -> Suficientes depósitos o silos. Limpieza periódica de los mismos.
P5: =IF('DEFINICION INDICADORES'!A11="","",'DEFINICION INDICADORES'!A11) -> 3 | Q5: =IF('DEFINICION INDICADORES'!B11="","",'DEFINICION INDICADORES'!B11) -> INSTALACIONES | R5: =IF(J24="","",J24) -> 51 | S5: =IF(K24="","",K24) -> 84 | T5: =IF(L24="","",L24) -> 55.97619048 | V5: 3 | Y5: 3 | Z5: 33 | AA5: Carga Ambiental | AB5: 8 | AC5: 16 | AD5: 10.06349206 | AG5: Agua de bebida | AH5: 4 | AI5: =IF(AH5="","",VLOOKUP(AH5,AH43:AI47,2,FALSE)) -> Calidad química y bacteriológica del agua. Acuíferos. Análisis y control periódicos. Sistema de tratamiento de aguas. | AJ5: =IF('INFORME EXPLOTACION CREAR'!D10="","",'INFORME EXPLOTACION CREAR'!D10) -> Recomendamos analiticas cada 6 meses de agua | AK5: Recomendamos analiticas cada 6 meses de agua
P6: =IF('DEFINICION INDICADORES'!A12="","",'DEFINICION INDICADORES'!A12) -> 4 | Q6: =IF('DEFINICION INDICADORES'!B12="","",'DEFINICION INDICADORES'!B12) -> BIENESTAR | R6: =IF(J29="","",J29) -> 60 | S6: =IF(K29="","",K29) -> 76 | T6: =IF(L29="","",L29) -> 54.00793651 | V6: 4 | Y6: 4 | Z6: 43 | AA6: Aislamiento cubierta | AB6: 10 | AC6: 20 | AD6: 12.53968254 | AG6: Depósitos y conducción de agua | AH6: 3 | AI6: =IF(AH6="","",VLOOKUP(AH6,AH48:AI52,2,FALSE)) -> Suficientes depósitos adpatados al tamaño de la explotación.Doble via para tratamientos en algunas cuadras Limpieza periódica de tuberías. Ausencia de biofilm | AJ6: =IF('INFORME EXPLOTACION CREAR'!D11="","",'INFORME EXPLOTACION CREAR'!D11) ->  | AK6: Suficientes depósitos adpatados al tamaño de la explotación.Doble via para tratamientos en algunas cuadras Limpieza periódica de tuberías. Ausencia de biofilm
P7: =IF('DEFINICION INDICADORES'!A13="","",'DEFINICION INDICADORES'!A13) -> 5 | Q7: =IF('DEFINICION INDICADORES'!B13="","",'DEFINICION INDICADORES'!B13) -> FORMACION Y REGISTRO | R7: =IF(J34="","",J34) -> 33 | S7: =IF(K34="","",K34) -> 48 | T7: =IF(L34="","",L34) -> 31.88095238 | V7: 5 | Y7: 5 | Z7: 53 | AA7: Dimensionado y Ventilación | AB7: 15 | AC7: 20 | AD7: 12.81746032 | AG7: Automatización adecuada | AH7: 2 | AI7: =IF(AH7="","",VLOOKUP(AH7,AH53:AI57,2,FALSE)) -> Alimentación automatizada que asegure suministro de alimento suficiente. Tiempo empleado en suministro corto. Algo de finos. No limpieza diaria | AJ7: =IF('INFORME EXPLOTACION CREAR'!D12="","",'INFORME EXPLOTACION CREAR'!D12) ->  | AK7: Alimentación automatizada que asegure suministro de alimento suficiente. Tiempo empleado en suministro corto. Algo de finos. No limpieza diaria
J8: CONFORME | K8: 1 | Y8: 6 | Z8: 63 | AG8: Ratios mortalidad y desvieje | AH8: 4 | AI8: =IF(AH8="","",VLOOKUP(AH8,AH58:AI62,2,FALSE)) -> Mortalidad adultas y desvieje <15% | AJ8: =IF('INFORME EXPLOTACION CREAR'!D13="","",'INFORME EXPLOTACION CREAR'!D13) ->  | AK8: Mortalidad adultas y desvieje <15%
J9: NO CONFORME | K9: 0 | Y9: 7 | Z9: 73 | AG9: Incidencia de abortos | AH9: 1 | AI9: =IF(AH9="","",VLOOKUP(AH9,AH63:AI67,2,FALSE)) -> Abortos habituales con dfagnostico claro de varios procesos | AJ9: =IF('INFORME EXPLOTACION CREAR'!D14="","",'INFORME EXPLOTACION CREAR'!D14) ->  | AK9: Abortos habituales con dfagnostico claro de varios procesos
Y10: 8 | Z10: 83 | AG10: Plan Sanitario | AH10: 1 | AI10: =IF(AH10="","",VLOOKUP(AH10,AH68:AI72,2,FALSE)) -> Vacunación o desparasitación ocasional | AJ10: =IF('INFORME EXPLOTACION CREAR'!D15="","",'INFORME EXPLOTACION CREAR'!D15) ->  | AK10: Vacunación o desparasitación ocasional
A11: EXPLOTACION | E11: =IF('DEFINICION INDICADORES'!E15="","",'DEFINICION INDICADORES'!E15) -> CEBO CORDEROS | AG11: Incidencia de enfermedades crónicas | AH11: 1 | AI11: =IF(AH11="","",VLOOKUP(AH11,AH73:AI77,2,FALSE)) -> Incidencia media de enfermedades crónicas con diagnostico | AJ11: =IF('INFORME EXPLOTACION CREAR'!D16="","",'INFORME EXPLOTACION CREAR'!D16) ->  | AK11: Incidencia media de enfermedades crónicas con diagnostico
AG12: Control animales extraños | AH12: 2 | AI12: =IF(AH12="","",VLOOKUP(AH12,AH78:AI82,2,FALSE)) -> Programa DDD y su cumplimiento. Vigila perros y gatos de la explotación. No desparasita perros siempre. No controla siempre animales externos | AJ12: =IF('INFORME EXPLOTACION CREAR'!D17="","",'INFORME EXPLOTACION CREAR'!D17) ->  | AK12: Programa DDD y su cumplimiento. Vigila perros y gatos de la explotación. No desparasita perros siempre. No controla siempre animales externos
A13: BASES | E13: INDICADORES | F13: PUNTUACION | G13: PONDERADO | H13: MAXIMO | I13: MEDIO | J13: NOTA | K13: MAXIMO | L13: MEDIO | M13: %CUMPLIMIENTO | N13: % UMBRAL | O13: COMENTARIO | AG13: Comederos y forrajeras | AH13: 3 | AI13: =IF(AH13="","",VLOOKUP(AH13,AH83:AI87,2,FALSE)) -> Disponibilidad sobrada de comederos y pajeras , limpios y situados solo en una parte de la cuadra. Suelo limpio y seco. | AJ13: =IF('INFORME EXPLOTACION CREAR'!D18="","",'INFORME EXPLOTACION CREAR'!D18) ->  | AK13: Disponibilidad sobrada de comederos y pajeras , limpios y situados solo en una parte de la cuadra. Suelo limpio y seco.
A14: =IF('DEFINICION INDICADORES'!B9="","",'DEFINICION INDICADORES'!B9) -> ALIMENTACION | B14: 1 | C14: =IF('DEFINICION INDICADORES'!D18="","",'DEFINICION INDICADORES'!D18) -> 1 | D14: =IF(C14="","",CONCATENATE(B14,C14)) -> 11 | E14: =IF('DEFINICION INDICADORES'!E18="","",'DEFINICION INDICADORES'!E18) -> Programa adecuado y adaptado | F14: =IF('HOJA DIAGNOSTICO'!D14="","",'HOJA DIAGNOSTICO'!D14) -> 4 | G14: =IF(F14="","",F14*'DEFINICION INDICADORES'!F18) -> 24 | H14: =IF(F14="","",('DEFINICION INDICADORES'!F18*4)) -> 24 | I14: =IF(F14="","",'DEFINICION INDICADORES'!Q18) -> 17.47619048 | J14: =IF(G18="","",SUM(G14:G18)) -> 80 | K14: =IF(H18="","",SUM(H14:H18)) -> 92 | L14: =IF(I18="","",SUM(I14:I18)) -> 63.91269841 | M14: =IF(J14="","",J14/K14) -> 0.8695652174 | N14: =IF('DEFINICION INDICADORES'!E9="","",'DEFINICION INDICADORES'!E9) -> 0.75 | O14: =IF(K14="","",IF(M14>N14,"CONFORME. Intentar mejorar aspectos negativos","NO CONFORME: Es fundamental corregir los aspectos negativos")) -> CONFORME. Intentar mejorar aspectos negativos | AG14: Bebederos | AH14: 2 | AI14: =IF(AH14="","",VLOOKUP(AH14,AH88:AI92,2,FALSE)) -> Número y/o superficie de bebederos adecuado respecto a la densidad de los animales. Bebederos limpios en un solo emplazamiento. Suelo seco | AJ14: =IF('INFORME EXPLOTACION CREAR'!D19="","",'INFORME EXPLOTACION CREAR'!D19) ->  | AK14: Número y/o superficie de bebederos adecuado respecto a la densidad de los animales. Bebederos limpios en un solo emplazamiento. Suelo seco
B15: 2 | C15: =IF('DEFINICION INDICADORES'!D19="","",'DEFINICION INDICADORES'!D19) -> 1 | D15: =IF(C15="","",CONCATENATE(B15,C15)) -> 21 | E15: =IF('DEFINICION INDICADORES'!E19="","",'DEFINICION INDICADORES'!E19) -> Depósitos y silos pienso | F15: =IF('HOJA DIAGNOSTICO'!D15="","",'HOJA DIAGNOSTICO'!D15) -> 4 | G15: =IF(F15="","",F15*'DEFINICION INDICADORES'!F19) -> 16 | H15: =IF(F15="","",('DEFINICION INDICADORES'!F19*4)) -> 16 | I15: =IF(F15="","",'DEFINICION INDICADORES'!Q19) -> 12.22222222 | AG15: Carga Ambiental | AH15: 2 | AI15: =IF(AH15="","",VLOOKUP(AH15,AH93:AI97,2,FALSE)) -> Olor ligeramente perceptible pero que no queda impregnado en la ropa | AJ15: =IF('INFORME EXPLOTACION CREAR'!D20="","",'INFORME EXPLOTACION CREAR'!D20) ->  | AK15: Olor ligeramente perceptible pero que no queda impregnado en la ropa
B16: 3 | C16: =IF('DEFINICION INDICADORES'!D20="","",'DEFINICION INDICADORES'!D20) -> 1 | D16: 31 | E16: =IF('DEFINICION INDICADORES'!E20="","",'DEFINICION INDICADORES'!E20) -> Agua de bebida | F16: =IF('HOJA DIAGNOSTICO'!D16="","",'HOJA DIAGNOSTICO'!D16) -> 4 | G16: =IF(F16="","",F16*'DEFINICION INDICADORES'!F20) -> 20 | H16: =IF(F16="","",('DEFINICION INDICADORES'!F20*4)) -> 20 | I16: =IF(F16="","",'DEFINICION INDICADORES'!Q20) -> 13.76984127 | AG16: Aislamiento cubierta | AH16: 2 | AI16: =IF(AH16="","",VLOOKUP(AH16,AH98:AI102,2,FALSE)) -> Cubierta aislada pero con algún defecto. En general buenas coindiciones ambientales pero se nota el calor o frío extremo. | AJ16: =IF('INFORME EXPLOTACION CREAR'!D21="","",'INFORME EXPLOTACION CREAR'!D21) ->  | AK16: Cubierta aislada pero con algún defecto. En general buenas coindiciones ambientales pero se nota el calor o frío extremo.
B17: 4 | C17: =IF('DEFINICION INDICADORES'!D21="","",'DEFINICION INDICADORES'!D21) -> 1 | D17: 41 | E17: =IF('DEFINICION INDICADORES'!E21="","",'DEFINICION INDICADORES'!E21) -> Depósitos y conducción de agua | F17: =IF('HOJA DIAGNOSTICO'!D17="","",'HOJA DIAGNOSTICO'!D17) -> 3 | G17: =IF(F17="","",F17*'DEFINICION INDICADORES'!F21) -> 12 | H17: =IF(F17="","",('DEFINICION INDICADORES'!F21*4)) -> 16 | I17: =IF(F17="","",'DEFINICION INDICADORES'!Q21) -> 9.492063492 | AG17: Dimensionado y Ventilación | AH17: 3 | AI17: =IF(AH17="","",VLOOKUP(AH17,AH103:AI107,2,FALSE)) -> Volumen estático, entradas y salidas de aire y velocidad del aire adecuadas. | AJ17: =IF('INFORME EXPLOTACION CREAR'!D22="","",'INFORME EXPLOTACION CREAR'!D22) ->  | AK17: Volumen estático, entradas y salidas de aire y velocidad del aire adecuadas.
B18: 5 | C18: =IF('DEFINICION INDICADORES'!D22="","",'DEFINICION INDICADORES'!D22) -> 1 | D18: 51 | E18: =IF('DEFINICION INDICADORES'!E22="","",'DEFINICION INDICADORES'!E22) -> Automatización adecuada | F18: =IF('HOJA DIAGNOSTICO'!D18="","",'HOJA DIAGNOSTICO'!D18) -> 2 | G18: =IF(F18="","",F18*'DEFINICION INDICADORES'!F22) -> 8 | H18: =IF(F18="","",('DEFINICION INDICADORES'!F22*4)) -> 16 | I18: =IF(F18="","",'DEFINICION INDICADORES'!Q22) -> 10.95238095 | AG18: Densidad animal | AH18: 3 | AI18: =IF(AH18="","",VLOOKUP(AH18,AH108:AI112,2,FALSE)) -> Entre 1.5 y 2 m2 por oveja | AJ18: =IF('INFORME EXPLOTACION CREAR'!D23="","",'INFORME EXPLOTACION CREAR'!D23) ->  | AK18: Entre 1.5 y 2 m2 por oveja
A19: =IF('DEFINICION INDICADORES'!B10="","",'DEFINICION INDICADORES'!B10) -> SANIDAD | B19: 1 | C19: =IF('DEFINICION INDICADORES'!D23="","",'DEFINICION INDICADORES'!D23) -> 2 | D19: 12 | E19: =IF('DEFINICION INDICADORES'!E23="","",'DEFINICION INDICADORES'!E23) -> Ratios mortalidad y desvieje | F19: =IF('HOJA DIAGNOSTICO'!D19="","",'HOJA DIAGNOSTICO'!D19) -> 4 | G19: =IF(F19="","",F19*'DEFINICION INDICADORES'!F23) -> 24 | H19: =IF(F19="","",('DEFINICION INDICADORES'!F23*4)) -> 24 | I19: =IF(F19="","",'DEFINICION INDICADORES'!Q23) -> 16.19047619 | J19: =IF(G23="","",SUM(G19:G23)) -> 46 | K19: =IF(H23="","",SUM(H19:H23)) -> 100 | L19: =IF(I23="","",SUM(I19:I23)) -> 66.34126984 | M19: =IF(J19="","",J19/K19) -> 0.46 | N19: =IF('DEFINICION INDICADORES'!E10="","",'DEFINICION INDICADORES'!E10) -> 0.8 | O19: =IF(K19="","",IF(M19>N19,"CONFORME. Intentar mejorar aspectos negativos","NO CONFORME: Es fundamental corregir los aspectos negativos")) -> NO CONFORME: Es fundamental corregir los aspectos negativos | AG19: Calidad de cama | AH19: 3 | AI19: =IF(AH19="","",VLOOKUP(AH19,AH113:AI117,2,FALSE)) -> Cama limpia, seca y abundante y de renovado no diario | AJ19: =IF('INFORME EXPLOTACION CREAR'!D24="","",'INFORME EXPLOTACION CREAR'!D24) ->  | AK19: Cama limpia, seca y abundante y de renovado no diario
B20: 2 | C20: =IF('DEFINICION INDICADORES'!D24="","",'DEFINICION INDICADORES'!D24) -> 2 | D20: 22 | E20: =IF('DEFINICION INDICADORES'!E24="","",'DEFINICION INDICADORES'!E24) -> Incidencia de abortos | F20: =IF('HOJA DIAGNOSTICO'!D20="","",'HOJA DIAGNOSTICO'!D20) -> 1 | G20: =IF(F20="","",F20*'DEFINICION INDICADORES'!F24) -> 6 | H20: =IF(F20="","",('DEFINICION INDICADORES'!F24*4)) -> 24 | I20: =IF(F20="","",'DEFINICION INDICADORES'!Q24) -> 17.0952381 | AG20: Alteración conducta. Estrés | AH20: 3 | AI20: =IF(AH20="","",VLOOKUP(AH20,AH118:AI122,2,FALSE)) -> Entre 80 y 90% de animales tumbados. No esterotipias | AJ20: =IF('INFORME EXPLOTACION CREAR'!D25="","",'INFORME EXPLOTACION CREAR'!D25) ->  | AK20: Entre 80 y 90% de animales tumbados. No esterotipias
B21: 3 | C21: =IF('DEFINICION INDICADORES'!D25="","",'DEFINICION INDICADORES'!D25) -> 2 | D21: 32 | E21: =IF('DEFINICION INDICADORES'!E25="","",'DEFINICION INDICADORES'!E25) -> Plan Sanitario | F21: =IF('HOJA DIAGNOSTICO'!D21="","",'HOJA DIAGNOSTICO'!D21) -> 1 | G21: =IF(F21="","",F21*'DEFINICION INDICADORES'!F25) -> 5 | H21: =IF(F21="","",('DEFINICION INDICADORES'!F25*4)) -> 20 | I21: =IF(F21="","",'DEFINICION INDICADORES'!Q25) -> 13.57142857 | AG21: Estado de lana y pezuñas | AH21: 4 | AI21: =IF(AH21="","",VLOOKUP(AH21,AH123:AI127,2,FALSE)) -> Nula incidencia de cojeras. Lana perfecta | AJ21: =IF('INFORME EXPLOTACION CREAR'!D26="","",'INFORME EXPLOTACION CREAR'!D26) ->  | AK21: Nula incidencia de cojeras. Lana perfecta
B22: 4 | C22: =IF('DEFINICION INDICADORES'!D26="","",'DEFINICION INDICADORES'!D26) -> 2 | D22: 42 | E22: =IF('DEFINICION INDICADORES'!E26="","",'DEFINICION INDICADORES'!E26) -> Incidencia de enfermedades crónicas | F22: =IF('HOJA DIAGNOSTICO'!D22="","",'HOJA DIAGNOSTICO'!D22) -> 1 | G22: =IF(F22="","",F22*'DEFINICION INDICADORES'!F26) -> 5 | H22: =IF(F22="","",('DEFINICION INDICADORES'!F26*4)) -> 20 | I22: =IF(F22="","",'DEFINICION INDICADORES'!Q26) -> 11.86507937 | AG22: Estado externo animales, CC | AH22: 3 | AI22: =IF(AH22="","",VLOOKUP(AH22,AH128:AI132,2,FALSE)) -> Capa limpia y suciedad solo en pezuñas.. Buen estado corporal | AJ22: =IF('INFORME EXPLOTACION CREAR'!D27="","",'INFORME EXPLOTACION CREAR'!D27) ->  | AK22: Capa limpia y suciedad solo en pezuñas.. Buen estado corporal
B23: 5 | C23: =IF('DEFINICION INDICADORES'!D27="","",'DEFINICION INDICADORES'!D27) -> 2 | D23: 52 | E23: =IF('DEFINICION INDICADORES'!E27="","",'DEFINICION INDICADORES'!E27) -> Control animales extraños | F23: =IF('HOJA DIAGNOSTICO'!D23="","",'HOJA DIAGNOSTICO'!D23) -> 2 | G23: =IF(F23="","",F23*'DEFINICION INDICADORES'!F27) -> 6 | H23: =IF(F23="","",('DEFINICION INDICADORES'!F27*4)) -> 12 | I23: =IF(F23="","",'DEFINICION INDICADORES'!Q27) -> 7.619047619 | AG23: Libro de Explotación actualizado | AH23: 3 | AI23: =IF(AH23="","",VLOOKUP(AH23,AH133:AI137,2,FALSE)) -> Libro de esxplotación en el que figure el censo actualizado y movimientos de los animales. Entradas y salidas y tratamientos veterinarios. | AJ23: =IF('INFORME EXPLOTACION CREAR'!D28="","",'INFORME EXPLOTACION CREAR'!D28) ->  | AK23: Libro de esxplotación en el que figure el censo actualizado y movimientos de los animales. Entradas y salidas y tratamientos veterinarios.
A24: =IF('DEFINICION INDICADORES'!B11="","",'DEFINICION INDICADORES'!B11) -> INSTALACIONES | B24: 1 | C24: =IF('DEFINICION INDICADORES'!D28="","",'DEFINICION INDICADORES'!D28) -> 3 | D24: 13 | E24: =IF('DEFINICION INDICADORES'!E28="","",'DEFINICION INDICADORES'!E28) -> Comederos y forrajeras | F24: =IF('HOJA DIAGNOSTICO'!D24="","",'HOJA DIAGNOSTICO'!D24) -> 3 | G24: =IF(F24="","",F24*'DEFINICION INDICADORES'!F28) -> 12 | H24: =IF(F24="","",('DEFINICION INDICADORES'!F28*4)) -> 16 | I24: =IF(F24="","",'DEFINICION INDICADORES'!Q28) -> 12.31746032 | J24: =IF(G28="","",SUM(G24:G28)) -> 51 | K24: =IF(H28="","",SUM(H24:H28)) -> 84 | L24: =IF(I28="","",SUM(I24:I28)) -> 55.97619048 | M24: =IF(J24="","",J24/K24) -> 0.6071428571 | N24: =IF('DEFINICION INDICADORES'!E11="","",'DEFINICION INDICADORES'!E11) -> 0.75 | O24: =IF(K24="","",IF(M24>N24,"CONFORME. Intentar mejorar aspectos negativos","NO CONFORME: Es fundamental corregir los aspectos negativos")) -> NO CONFORME: Es fundamental corregir los aspectos negativos | AG24: Formación del Ganadero | AH24: 3 | AI24: =IF(AH24="","",VLOOKUP(AH24,AH138:AI142,2,FALSE)) -> Titulación obligatoria y algunas titulaciones complementarias | AJ24: =IF('INFORME EXPLOTACION CREAR'!D29="","",'INFORME EXPLOTACION CREAR'!D29) ->  | AK24: Titulación obligatoria y algunas titulaciones complementarias
B25: 2 | C25: =IF('DEFINICION INDICADORES'!D29="","",'DEFINICION INDICADORES'!D29) -> 3 | D25: 23 | E25: =IF('DEFINICION INDICADORES'!E29="","",'DEFINICION INDICADORES'!E29) -> Bebederos | F25: =IF('HOJA DIAGNOSTICO'!D25="","",'HOJA DIAGNOSTICO'!D25) -> 2 | G25: =IF(F25="","",F25*'DEFINICION INDICADORES'!F29) -> 6 | H25: =IF(F25="","",('DEFINICION INDICADORES'!F29*4)) -> 12 | I25: =IF(F25="","",'DEFINICION INDICADORES'!Q29) -> 8.238095238 | AG25: Gestión Medioambiental | AH25: 3 | AI25: =IF(AH25="","",VLOOKUP(AH25,AH143:AI147,2,FALSE)) -> Documentación ajustada a la normativa y actualizada. | AJ25: =IF('INFORME EXPLOTACION CREAR'!D30="","",'INFORME EXPLOTACION CREAR'!D30) ->  | AK25: Documentación ajustada a la normativa y actualizada.
B26: 3 | C26: =IF('DEFINICION INDICADORES'!D30="","",'DEFINICION INDICADORES'!D30) -> 3 | D26: 33 | E26: =IF('DEFINICION INDICADORES'!E30="","",'DEFINICION INDICADORES'!E30) -> Carga Ambiental | F26: =IF('HOJA DIAGNOSTICO'!D26="","",'HOJA DIAGNOSTICO'!D26) -> 2 | G26: =IF(F26="","",F26*'DEFINICION INDICADORES'!F30) -> 8 | H26: =IF(F26="","",('DEFINICION INDICADORES'!F30*4)) -> 16 | I26: =IF(F26="","",'DEFINICION INDICADORES'!Q30) -> 10.06349206 | AG26: Bioseguridad | AH26: 2 | AI26: =IF(AH26="","",VLOOKUP(AH26,AH148:AI152,2,FALSE)) -> Medidas de bioseguridad adecuadas en alimentación, control de animales externos, cadaveres. | AJ26: =IF('INFORME EXPLOTACION CREAR'!D31="","",'INFORME EXPLOTACION CREAR'!D31) ->  | AK26: Medidas de bioseguridad adecuadas en alimentación, control de animales externos, cadaveres.
B27: 4 | C27: =IF('DEFINICION INDICADORES'!D31="","",'DEFINICION INDICADORES'!D31) -> 3 | D27: 43 | E27: =IF('DEFINICION INDICADORES'!E31="","",'DEFINICION INDICADORES'!E31) -> Aislamiento cubierta | F27: =IF('HOJA DIAGNOSTICO'!D27="","",'HOJA DIAGNOSTICO'!D27) -> 2 | G27: =IF(F27="","",F27*'DEFINICION INDICADORES'!F31) -> 10 | H27: =IF(F27="","",('DEFINICION INDICADORES'!F31*4)) -> 20 | I27: =IF(F27="","",'DEFINICION INDICADORES'!Q31) -> 12.53968254 | AG27: Carga de Trabajo | AH27: 3 | AI27: =IF(AH27="","",VLOOKUP(AH27,AH153:AI157,2,FALSE)) -> Mano de obra suficiente. Horarios laborales flexibles. Motivación | AJ27: =IF('INFORME EXPLOTACION CREAR'!D32="","",'INFORME EXPLOTACION CREAR'!D32) ->  | AK27: Mano de obra suficiente. Horarios laborales flexibles. Motivación
B28: 5 | C28: =IF('DEFINICION INDICADORES'!D32="","",'DEFINICION INDICADORES'!D32) -> 3 | D28: 53 | E28: =IF('DEFINICION INDICADORES'!E32="","",'DEFINICION INDICADORES'!E32) -> Dimensionado y Ventilación | F28: =IF('HOJA DIAGNOSTICO'!D28="","",'HOJA DIAGNOSTICO'!D28) -> 3 | G28: =IF(F28="","",F28*'DEFINICION INDICADORES'!F32) -> 15 | H28: =IF(F28="","",('DEFINICION INDICADORES'!F32*4)) -> 20 | I28: =IF(F28="","",'DEFINICION INDICADORES'!Q32) -> 12.81746032
A29: =IF('DEFINICION INDICADORES'!B12="","",'DEFINICION INDICADORES'!B12) -> BIENESTAR | B29: 1 | C29: =IF('DEFINICION INDICADORES'!D33="","",'DEFINICION INDICADORES'!D33) -> 4 | D29: 14 | E29: =IF('DEFINICION INDICADORES'!E33="","",'DEFINICION INDICADORES'!E33) -> Densidad animal | F29: =IF('HOJA DIAGNOSTICO'!D29="","",'HOJA DIAGNOSTICO'!D29) -> 3 | G29: =IF(F29="","",F29*'DEFINICION INDICADORES'!F33) -> 15 | H29: =IF(F29="","",('DEFINICION INDICADORES'!F33*4)) -> 20 | I29: =IF(F29="","",'DEFINICION INDICADORES'!Q33) -> 13.65079365 | J29: =IF(G33="","",SUM(G29:G33)) -> 60 | K29: =IF(H33="","",SUM(H29:H33)) -> 76 | L29: =IF(I33="","",SUM(I29:I33)) -> 54.00793651 | M29: =IF(J29="","",J29/K29) -> 0.7894736842 | N29: =IF('DEFINICION INDICADORES'!E12="","",'DEFINICION INDICADORES'!E12) -> 0.7 | O29: =IF(K29="","",IF(M29>N29,"CONFORME. Intentar mejorar aspectos negativos","NO CONFORME: Es fundamental corregir los aspectos negativos")) -> CONFORME. Intentar mejorar aspectos negativos
B30: 2 | C30: =IF('DEFINICION INDICADORES'!D34="","",'DEFINICION INDICADORES'!D34) -> 4 | D30: 24 | E30: =IF('DEFINICION INDICADORES'!E34="","",'DEFINICION INDICADORES'!E34) -> Calidad de cama | F30: =IF('HOJA DIAGNOSTICO'!D30="","",'HOJA DIAGNOSTICO'!D30) -> 3 | G30: =IF(F30="","",F30*'DEFINICION INDICADORES'!F34) -> 12 | H30: =IF(F30="","",('DEFINICION INDICADORES'!F34*4)) -> 16 | I30: =IF(F30="","",'DEFINICION INDICADORES'!Q34) -> 10.6984127
B31: 3 | C31: =IF('DEFINICION INDICADORES'!D35="","",'DEFINICION INDICADORES'!D35) -> 4 | D31: 34 | E31: =IF('DEFINICION INDICADORES'!E35="","",'DEFINICION INDICADORES'!E35) -> Alteración conducta. Estrés | F31: =IF('HOJA DIAGNOSTICO'!D31="","",'HOJA DIAGNOSTICO'!D31) -> 3 | G31: =IF(F31="","",F31*'DEFINICION INDICADORES'!F35) -> 9 | H31: =IF(F31="","",('DEFINICION INDICADORES'!F35*4)) -> 12 | I31: =IF(F31="","",'DEFINICION INDICADORES'!Q35) -> 8.428571429
B32: 4 | C32: =IF('DEFINICION INDICADORES'!D36="","",'DEFINICION INDICADORES'!D36) -> 4 | D32: 44 | E32: =IF('DEFINICION INDICADORES'!E36="","",'DEFINICION INDICADORES'!E36) -> Estado de lana y pezuñas | F32: =IF('HOJA DIAGNOSTICO'!D32="","",'HOJA DIAGNOSTICO'!D32) -> 4 | G32: =IF(F32="","",F32*'DEFINICION INDICADORES'!F36) -> 12 | H32: =IF(F32="","",('DEFINICION INDICADORES'!F36*4)) -> 12 | I32: =IF(F32="","",'DEFINICION INDICADORES'!Q36) -> 9.357142857
B33: 5 | C33: =IF('DEFINICION INDICADORES'!D37="","",'DEFINICION INDICADORES'!D37) -> 4 | D33: 54 | E33: =IF('DEFINICION INDICADORES'!E37="","",'DEFINICION INDICADORES'!E37) -> Estado externo animales, CC | F33: =IF('HOJA DIAGNOSTICO'!D33="","",'HOJA DIAGNOSTICO'!D33) -> 3 | G33: =IF(F33="","",F33*'DEFINICION INDICADORES'!F37) -> 12 | H33: =IF(F33="","",('DEFINICION INDICADORES'!F37*4)) -> 16 | I33: =IF(F33="","",'DEFINICION INDICADORES'!Q37) -> 11.87301587 | AG33: =IF(AG3="","",AG3) -> Programa adecuado y adaptado | AH33: 4 | AI33: =IF('CRITERIOS CALIFICACION'!D5="","",'CRITERIOS CALIFICACION'!D5) -> Piensos adecuados y suficientes. Buen manejo. Adaptados a las diferentes producciones. Equilibrio nutricional. Cobertura necesidades. Separa machos y hembras
A34: =IF('DEFINICION INDICADORES'!B13="","",'DEFINICION INDICADORES'!B13) -> FORMACION Y REGISTRO | B34: 1 | C34: =IF('DEFINICION INDICADORES'!D38="","",'DEFINICION INDICADORES'!D38) -> 5 | D34: 15 | E34: =IF('DEFINICION INDICADORES'!E38="","",'DEFINICION INDICADORES'!E38) -> Libro de Explotación actualizado | F34: =IF('HOJA DIAGNOSTICO'!D34="","",'HOJA DIAGNOSTICO'!D34) -> 3 | G34: =IF(F34="","",F34*'DEFINICION INDICADORES'!F38) -> 6 | H34: =IF(F34="","",('DEFINICION INDICADORES'!F38*4)) -> 8 | I34: =IF(F34="","",'DEFINICION INDICADORES'!Q38) -> 6.412698413 | J34: =IF(G38="","",SUM(G34:G38)) -> 33 | K34: =IF(H38="","",SUM(H34:H38)) -> 48 | L34: =IF(I38="","",SUM(I34:I38)) -> 31.88095238 | M34: =IF(J34="","",J34/K34) -> 0.6875 | N34: =IF('DEFINICION INDICADORES'!E13="","",'DEFINICION INDICADORES'!E13) -> 0.65 | O34: =IF(K34="","",IF(M34>N34,"CONFORME. Intentar mejorar aspectos negativos","NO CONFORME: Es fundamental corregir los aspectos negativos")) -> CONFORME. Intentar mejorar aspectos negativos | AH34: 3 | AI34: =IF('CRITERIOS CALIFICACION'!D6="","",'CRITERIOS CALIFICACION'!D6) -> Piensos adecuados y suficientes. Buen manejo. Adaptados a las diferentes producciones. Equilibrio nutricional. Cobertura necesidades.
B35: 2 | C35: =IF('DEFINICION INDICADORES'!D39="","",'DEFINICION INDICADORES'!D39) -> 5 | D35: 25 | E35: =IF('DEFINICION INDICADORES'!E39="","",'DEFINICION INDICADORES'!E39) -> Formación del Ganadero | F35: =IF('HOJA DIAGNOSTICO'!D35="","",'HOJA DIAGNOSTICO'!D35) -> 3 | G35: =IF(F35="","",F35*'DEFINICION INDICADORES'!F39) -> 3 | H35: =IF(F35="","",('DEFINICION INDICADORES'!F39*4)) -> 4 | I35: =IF(F35="","",'DEFINICION INDICADORES'!Q39) -> 2.698412698 | AH35: 2 | AI35: =IF('CRITERIOS CALIFICACION'!D7="","",'CRITERIOS CALIFICACION'!D7) -> Piensos equlibrados con cobertura nutricional. Tiene que adpatar los piensos a los lotes
B36: 3 | C36: =IF('DEFINICION INDICADORES'!D40="","",'DEFINICION INDICADORES'!D40) -> 5 | D36: 35 | E36: =IF('DEFINICION INDICADORES'!E40="","",'DEFINICION INDICADORES'!E40) -> Gestión Medioambiental | F36: =IF('HOJA DIAGNOSTICO'!D36="","",'HOJA DIAGNOSTICO'!D36) -> 3 | G36: =IF(F36="","",F36*'DEFINICION INDICADORES'!F40) -> 3 | H36: =IF(F36="","",('DEFINICION INDICADORES'!F40*4)) -> 4 | I36: =IF(F36="","",'DEFINICION INDICADORES'!Q40) -> 2.293650794 | AH36: 1 | AI36: =IF('CRITERIOS CALIFICACION'!D8="","",'CRITERIOS CALIFICACION'!D8) -> Manejo y grupos adaptados a los piensos.
B37: 4 | C37: =IF('DEFINICION INDICADORES'!D41="","",'DEFINICION INDICADORES'!D41) -> 5 | D37: 45 | E37: =IF('DEFINICION INDICADORES'!E41="","",'DEFINICION INDICADORES'!E41) -> Bioseguridad | F37: =IF('HOJA DIAGNOSTICO'!D37="","",'HOJA DIAGNOSTICO'!D37) -> 2 | G37: =IF(F37="","",F37*'DEFINICION INDICADORES'!F41) -> 6 | H37: =IF(F37="","",('DEFINICION INDICADORES'!F41*4)) -> 12 | I37: =IF(F37="","",'DEFINICION INDICADORES'!Q41) -> 6.428571429 | AH37: 0 | AI37: =IF('CRITERIOS CALIFICACION'!D9="","",'CRITERIOS CALIFICACION'!D9) -> Desequilibrio nutricional o no cobertura de necesidades.
B38: 5 | C38: =IF('DEFINICION INDICADORES'!D42="","",'DEFINICION INDICADORES'!D42) -> 5 | D38: 55 | E38: =IF('DEFINICION INDICADORES'!E42="","",'DEFINICION INDICADORES'!E42) -> Carga de Trabajo | F38: =IF('HOJA DIAGNOSTICO'!D38="","",'HOJA DIAGNOSTICO'!D38) -> 3 | G38: =IF(F38="","",F38*'DEFINICION INDICADORES'!F42) -> 15 | H38: =IF(F38="","",('DEFINICION INDICADORES'!F42*4)) -> 20 | I38: =IF(F38="","",'DEFINICION INDICADORES'!Q42) -> 14.04761905 | AG38: Depósitos y silos pienso | AH38: 4 | AI38: =IF('CRITERIOS CALIFICACION'!D10="","",'CRITERIOS CALIFICACION'!D10) -> Suficientes depósitos o silos. Limpieza periódica de los mismos.
F39: TOTAL | G39: =IF(G38="","",SUM(G14:G38)) -> 270 | H39: =IF(H38="","",SUM(H14:H38)) -> 400 | J39: =IF(G39="","",SUM(J14:J38)) -> 270 | K39: =IF(H39="","",SUM(K14:K38)) -> 400 | M39: =IF(M14="","",AVERAGE(M14:M38)) -> 0.6827363517 | N39: =IF(N14="","",AVERAGE(N14:N38)) -> 0.73 | O39: =IF(K39="","",IF(M39>N39,"CONFORME. Intentar mejorar aspectos negativos","NO CONFORME: Es fundamental corregir los aspectos negativos")) -> NO CONFORME: Es fundamental corregir los aspectos negativos | AH39: 3 | AI39: =IF('CRITERIOS CALIFICACION'!D11="","",'CRITERIOS CALIFICACION'!D11) -> Suficientes depósitos o silos pero limpieza no planificada
AH40: 2 | AI40: =IF('CRITERIOS CALIFICACION'!D12="","",'CRITERIOS CALIFICACION'!D12) -> Silos limpios pero insuficientes
AH41: 1 | AI41: =IF('CRITERIOS CALIFICACION'!D13="","",'CRITERIOS CALIFICACION'!D13) -> Insuficientes silos. Limpieza no planificada
AH42: 0 | AI42: =IF('CRITERIOS CALIFICACION'!D14="","",'CRITERIOS CALIFICACION'!D14) -> Silos claramente sucios e insuficientes
AG43: Agua de bebida | AH43: 4 | AI43: =IF('CRITERIOS CALIFICACION'!D15="","",'CRITERIOS CALIFICACION'!D15) -> Calidad química y bacteriológica del agua. Acuíferos. Análisis y control periódicos. Sistema de tratamiento de aguas.
AH44: 3 | AI44: =IF('CRITERIOS CALIFICACION'!D16="","",'CRITERIOS CALIFICACION'!D16) -> Calidad química y bacteriológica del agua. Acuíferos. Sistema de tratamiento de aguas.
AH45: 2 | AI45: =IF('CRITERIOS CALIFICACION'!D17="","",'CRITERIOS CALIFICACION'!D17) -> Calidad química y bacteriológica del agua. Sistema de tratamiento de aguas.
AH46: 1 | AI46: =IF('CRITERIOS CALIFICACION'!D18="","",'CRITERIOS CALIFICACION'!D18) -> Calidad química y bacteriológica del agua insuficiente. Sistema de tratamiento de aguas.
AH47: 0 | AI47: =IF('CRITERIOS CALIFICACION'!D19="","",'CRITERIOS CALIFICACION'!D19) -> Calidad química y bacteriológica del agua insuficiente. Sistema de tratamiento de aguas no existe o insuficiente
AG48: Depósitos y conducción de agua | AH48: 4 | AI48: =IF('CRITERIOS CALIFICACION'!D20="","",'CRITERIOS CALIFICACION'!D20) -> Suficientes depósitos adpatados al tamaño de la explotación.Doble via para tratamientos en todas las cuadras Limpieza periódica de tuberías. Ausencia de biofilm
A49: TOMA DE MUESTRAS | AH49: 3 | AI49: =IF('CRITERIOS CALIFICACION'!D21="","",'CRITERIOS CALIFICACION'!D21) -> Suficientes depósitos adpatados al tamaño de la explotación.Doble via para tratamientos en algunas cuadras Limpieza periódica de tuberías. Ausencia de biofilm
AH50: 2 | AI50: =IF('CRITERIOS CALIFICACION'!D22="","",'CRITERIOS CALIFICACION'!D22) -> Depósitos adecuado y limpios pero con una sola linea de agua. Limpieza periódica de tuberías. Ausencia de biofilm
AH51: 1 | AI51: =IF('CRITERIOS CALIFICACION'!D23="","",'CRITERIOS CALIFICACION'!D23) -> Depósitos adecuado y limpios pero con una sola linea de agua. Limpieza no planificada de tuberías. Ausencia de biofilm
G52: =IF('INFORME TOMA DE MUESTRAS'!D8="","",'INFORME TOMA DE MUESTRAS'!D8) ->  | AH52: 0 | AI52: =IF('CRITERIOS CALIFICACION'!D24="","",'CRITERIOS CALIFICACION'!D24) -> Depósitos poco adecuados o sucios. Limpieza no planificada de tuberías. Presencia de biofilm
A53: 1 | B53: 2 | E53: 5 | F53: 6 | G53: 7 | J53: 10 | K53: 11 | AG53: Automatización adecuada | AH53: 4 | AI53: =IF('CRITERIOS CALIFICACION'!D25="","",'CRITERIOS CALIFICACION'!D25) -> Alimentación automatizada que asegure suministro de alimento suficiente. Tiempo empleado en suministro corto. No hay finos . Limpieza diaria
A54: =IF('DEFINIR TOMAS DE MUESTRAS'!A34="","",'DEFINIR TOMAS DE MUESTRAS'!A34) ->  | B54: =IF('DEFINIR TOMAS DE MUESTRAS'!B34="","",'DEFINIR TOMAS DE MUESTRAS'!B34) ->  | E54: =IF('DEFINIR TOMAS DE MUESTRAS'!C34="","",'DEFINIR TOMAS DE MUESTRAS'!C34) ->  | F54: =IF('DEFINIR TOMAS DE MUESTRAS'!D34="","",'DEFINIR TOMAS DE MUESTRAS'!D34) ->  | G54: =IF('DEFINIR TOMAS DE MUESTRAS'!E34="","",'DEFINIR TOMAS DE MUESTRAS'!E34) ->  | J54: =IF('DEFINIR TOMAS DE MUESTRAS'!F34="","",'DEFINIR TOMAS DE MUESTRAS'!F34) ->  | K54: =IF('DEFINIR TOMAS DE MUESTRAS'!G34="","",'DEFINIR TOMAS DE MUESTRAS'!G34) ->  | N54: =IF('DEFINIR TOMAS DE MUESTRAS'!H34="","",'DEFINIR TOMAS DE MUESTRAS'!H34) ->  | O54: =IF('DEFINIR TOMAS DE MUESTRAS'!I34="","",'DEFINIR TOMAS DE MUESTRAS'!I34) ->  | AH54: 3 | AI54: =IF('CRITERIOS CALIFICACION'!D26="","",'CRITERIOS CALIFICACION'!D26) -> Alimentación automatizada que asegure suministro de alimento suficiente. Tiempo empleado en suministro corto. Algo de finos pero limpieza diaria
A55: =IF('DEFINIR TOMAS DE MUESTRAS'!A35="","",'DEFINIR TOMAS DE MUESTRAS'!A35) ->  | B55: =IF('DEFINIR TOMAS DE MUESTRAS'!B35="","",'DEFINIR TOMAS DE MUESTRAS'!B35) ->  | E55: =IF('DEFINIR TOMAS DE MUESTRAS'!C35="","",'DEFINIR TOMAS DE MUESTRAS'!C35) ->  | F55: =IF('DEFINIR TOMAS DE MUESTRAS'!D35="","",'DEFINIR TOMAS DE MUESTRAS'!D35) ->  | G55: =IF('DEFINIR TOMAS DE MUESTRAS'!E35="","",'DEFINIR TOMAS DE MUESTRAS'!E35) ->  | J55: =IF('DEFINIR TOMAS DE MUESTRAS'!F35="","",'DEFINIR TOMAS DE MUESTRAS'!F35) ->  | K55: =IF('DEFINIR TOMAS DE MUESTRAS'!G35="","",'DEFINIR TOMAS DE MUESTRAS'!G35) ->  | AH55: 2 | AI55: =IF('CRITERIOS CALIFICACION'!D27="","",'CRITERIOS CALIFICACION'!D27) -> Alimentación automatizada que asegure suministro de alimento suficiente. Tiempo empleado en suministro corto. Algo de finos. No limpieza diaria
A56: =IF('DEFINIR TOMAS DE MUESTRAS'!A36="","",'DEFINIR TOMAS DE MUESTRAS'!A36) ->  | B56: =IF('DEFINIR TOMAS DE MUESTRAS'!B36="","",'DEFINIR TOMAS DE MUESTRAS'!B36) ->  | E56: =IF('DEFINIR TOMAS DE MUESTRAS'!C36="","",'DEFINIR TOMAS DE MUESTRAS'!C36) ->  | F56: =IF('DEFINIR TOMAS DE MUESTRAS'!D36="","",'DEFINIR TOMAS DE MUESTRAS'!D36) ->  | G56: =IF('DEFINIR TOMAS DE MUESTRAS'!E36="","",'DEFINIR TOMAS DE MUESTRAS'!E36) ->  | J56: =IF('DEFINIR TOMAS DE MUESTRAS'!F36="","",'DEFINIR TOMAS DE MUESTRAS'!F36) ->  | K56: =IF('DEFINIR TOMAS DE MUESTRAS'!G36="","",'DEFINIR TOMAS DE MUESTRAS'!G36) ->  | AH56: 1 | AI56: =IF('CRITERIOS CALIFICACION'!D28="","",'CRITERIOS CALIFICACION'!D28) -> Alimentación automatizada que asegure suministro de alimento suficiente. Tiempo empleado en suministro corto. Evidente presencia de finos que afectan al consumo
A57: =IF('DEFINIR TOMAS DE MUESTRAS'!A37="","",'DEFINIR TOMAS DE MUESTRAS'!A37) ->  | B57: =IF('DEFINIR TOMAS DE MUESTRAS'!B37="","",'DEFINIR TOMAS DE MUESTRAS'!B37) ->  | E57: =IF('DEFINIR TOMAS DE MUESTRAS'!C37="","",'DEFINIR TOMAS DE MUESTRAS'!C37) ->  | F57: =IF('DEFINIR TOMAS DE MUESTRAS'!D37="","",'DEFINIR TOMAS DE MUESTRAS'!D37) ->  | G57: =IF('DEFINIR TOMAS DE MUESTRAS'!E37="","",'DEFINIR TOMAS DE MUESTRAS'!E37) ->  | J57: =IF('DEFINIR TOMAS DE MUESTRAS'!F37="","",'DEFINIR TOMAS DE MUESTRAS'!F37) ->  | K57: =IF('DEFINIR TOMAS DE MUESTRAS'!G37="","",'DEFINIR TOMAS DE MUESTRAS'!G37) ->  | AH57: 0 | AI57: =IF('CRITERIOS CALIFICACION'!D29="","",'CRITERIOS CALIFICACION'!D29) -> Alimentación no automatizada . Tiempos en que los animales están sin pienso.
A58: =IF('DEFINIR TOMAS DE MUESTRAS'!A38="","",'DEFINIR TOMAS DE MUESTRAS'!A38) ->  | B58: =IF('DEFINIR TOMAS DE MUESTRAS'!B38="","",'DEFINIR TOMAS DE MUESTRAS'!B38) ->  | E58: =IF('DEFINIR TOMAS DE MUESTRAS'!C38="","",'DEFINIR TOMAS DE MUESTRAS'!C38) ->  | F58: =IF('DEFINIR TOMAS DE MUESTRAS'!D38="","",'DEFINIR TOMAS DE MUESTRAS'!D38) ->  | G58: =IF('DEFINIR TOMAS DE MUESTRAS'!E38="","",'DEFINIR TOMAS DE MUESTRAS'!E38) ->  | J58: =IF('DEFINIR TOMAS DE MUESTRAS'!F38="","",'DEFINIR TOMAS DE MUESTRAS'!F38) ->  | K58: =IF('DEFINIR TOMAS DE MUESTRAS'!G38="","",'DEFINIR TOMAS DE MUESTRAS'!G38) ->  | AG58: Ratios mortalidad y morbilidad | AH58: 4 | AI58: =IF('CRITERIOS CALIFICACION'!D33="","",'CRITERIOS CALIFICACION'!D33) -> Mortalidad adultas y desvieje <15%
A59: =IF('DEFINIR TOMAS DE MUESTRAS'!A39="","",'DEFINIR TOMAS DE MUESTRAS'!A39) ->  | B59: =IF('DEFINIR TOMAS DE MUESTRAS'!B39="","",'DEFINIR TOMAS DE MUESTRAS'!B39) ->  | E59: =IF('DEFINIR TOMAS DE MUESTRAS'!C39="","",'DEFINIR TOMAS DE MUESTRAS'!C39) ->  | F59: =IF('DEFINIR TOMAS DE MUESTRAS'!D39="","",'DEFINIR TOMAS DE MUESTRAS'!D39) ->  | G59: =IF('DEFINIR TOMAS DE MUESTRAS'!E39="","",'DEFINIR TOMAS DE MUESTRAS'!E39) ->  | J59: =IF('DEFINIR TOMAS DE MUESTRAS'!F39="","",'DEFINIR TOMAS DE MUESTRAS'!F39) ->  | K59: =IF('DEFINIR TOMAS DE MUESTRAS'!G39="","",'DEFINIR TOMAS DE MUESTRAS'!G39) ->  | AH59: 3 | AI59: =IF('CRITERIOS CALIFICACION'!D34="","",'CRITERIOS CALIFICACION'!D34) -> Mortalidad adultas y desvieje entre 15% y 20%
A60: =IF('DEFINIR TOMAS DE MUESTRAS'!A40="","",'DEFINIR TOMAS DE MUESTRAS'!A40) ->  | B60: =IF('DEFINIR TOMAS DE MUESTRAS'!B40="","",'DEFINIR TOMAS DE MUESTRAS'!B40) ->  | E60: =IF('DEFINIR TOMAS DE MUESTRAS'!C40="","",'DEFINIR TOMAS DE MUESTRAS'!C40) ->  | F60: =IF('DEFINIR TOMAS DE MUESTRAS'!D40="","",'DEFINIR TOMAS DE MUESTRAS'!D40) ->  | G60: =IF('DEFINIR TOMAS DE MUESTRAS'!E40="","",'DEFINIR TOMAS DE MUESTRAS'!E40) ->  | J60: =IF('DEFINIR TOMAS DE MUESTRAS'!F40="","",'DEFINIR TOMAS DE MUESTRAS'!F40) ->  | K60: =IF('DEFINIR TOMAS DE MUESTRAS'!G40="","",'DEFINIR TOMAS DE MUESTRAS'!G40) ->  | AH60: 2 | AI60: =IF('CRITERIOS CALIFICACION'!D35="","",'CRITERIOS CALIFICACION'!D35) -> Mortalidad adulktas y desvieje entre 20 y 25%
A61: =IF('DEFINIR TOMAS DE MUESTRAS'!A41="","",'DEFINIR TOMAS DE MUESTRAS'!A41) ->  | B61: =IF('DEFINIR TOMAS DE MUESTRAS'!B41="","",'DEFINIR TOMAS DE MUESTRAS'!B41) ->  | E61: =IF('DEFINIR TOMAS DE MUESTRAS'!C41="","",'DEFINIR TOMAS DE MUESTRAS'!C41) ->  | F61: =IF('DEFINIR TOMAS DE MUESTRAS'!D41="","",'DEFINIR TOMAS DE MUESTRAS'!D41) ->  | G61: =IF('DEFINIR TOMAS DE MUESTRAS'!E41="","",'DEFINIR TOMAS DE MUESTRAS'!E41) ->  | J61: =IF('DEFINIR TOMAS DE MUESTRAS'!F41="","",'DEFINIR TOMAS DE MUESTRAS'!F41) ->  | K61: =IF('DEFINIR TOMAS DE MUESTRAS'!G41="","",'DEFINIR TOMAS DE MUESTRAS'!G41) ->  | AH61: 1 | AI61: =IF('CRITERIOS CALIFICACION'!D36="","",'CRITERIOS CALIFICACION'!D36) -> Mortalidad adultas y desvieje entre 25 y 40%
A62: =IF('DEFINIR TOMAS DE MUESTRAS'!A42="","",'DEFINIR TOMAS DE MUESTRAS'!A42) ->  | B62: =IF('DEFINIR TOMAS DE MUESTRAS'!B42="","",'DEFINIR TOMAS DE MUESTRAS'!B42) ->  | E62: =IF('DEFINIR TOMAS DE MUESTRAS'!C42="","",'DEFINIR TOMAS DE MUESTRAS'!C42) ->  | F62: =IF('DEFINIR TOMAS DE MUESTRAS'!D42="","",'DEFINIR TOMAS DE MUESTRAS'!D42) ->  | G62: =IF('DEFINIR TOMAS DE MUESTRAS'!E42="","",'DEFINIR TOMAS DE MUESTRAS'!E42) ->  | J62: =IF('DEFINIR TOMAS DE MUESTRAS'!F42="","",'DEFINIR TOMAS DE MUESTRAS'!F42) ->  | K62: =IF('DEFINIR TOMAS DE MUESTRAS'!G42="","",'DEFINIR TOMAS DE MUESTRAS'!G42) ->  | AH62: 0 | AI62: =IF('CRITERIOS CALIFICACION'!D37="","",'CRITERIOS CALIFICACION'!D37) -> Alta mortalidad y desvieje. Ambos > 40%
A63: =IF('DEFINIR TOMAS DE MUESTRAS'!A43="","",'DEFINIR TOMAS DE MUESTRAS'!A43) ->  | B63: =IF('DEFINIR TOMAS DE MUESTRAS'!B43="","",'DEFINIR TOMAS DE MUESTRAS'!B43) ->  | E63: =IF('DEFINIR TOMAS DE MUESTRAS'!C43="","",'DEFINIR TOMAS DE MUESTRAS'!C43) ->  | F63: =IF('DEFINIR TOMAS DE MUESTRAS'!D43="","",'DEFINIR TOMAS DE MUESTRAS'!D43) ->  | G63: =IF('DEFINIR TOMAS DE MUESTRAS'!E43="","",'DEFINIR TOMAS DE MUESTRAS'!E43) ->  | J63: =IF('DEFINIR TOMAS DE MUESTRAS'!F43="","",'DEFINIR TOMAS DE MUESTRAS'!F43) ->  | K63: =IF('DEFINIR TOMAS DE MUESTRAS'!G43="","",'DEFINIR TOMAS DE MUESTRAS'!G43) ->  | AG63: Detección enfermos. Enfermería | AH63: 4 | AI63: =IF('CRITERIOS CALIFICACION'!D38="","",'CRITERIOS CALIFICACION'!D38) -> Abortos inferiores al 3% con vacuna de clamidia y mas agentes a la reposicion o/y adultas
A64: =IF('DEFINIR TOMAS DE MUESTRAS'!A44="","",'DEFINIR TOMAS DE MUESTRAS'!A44) ->  | B64: =IF('DEFINIR TOMAS DE MUESTRAS'!B44="","",'DEFINIR TOMAS DE MUESTRAS'!B44) ->  | E64: =IF('DEFINIR TOMAS DE MUESTRAS'!C44="","",'DEFINIR TOMAS DE MUESTRAS'!C44) ->  | F64: =IF('DEFINIR TOMAS DE MUESTRAS'!D44="","",'DEFINIR TOMAS DE MUESTRAS'!D44) ->  | G64: =IF('DEFINIR TOMAS DE MUESTRAS'!E44="","",'DEFINIR TOMAS DE MUESTRAS'!E44) ->  | J64: =IF('DEFINIR TOMAS DE MUESTRAS'!F44="","",'DEFINIR TOMAS DE MUESTRAS'!F44) ->  | K64: =IF('DEFINIR TOMAS DE MUESTRAS'!G44="","",'DEFINIR TOMAS DE MUESTRAS'!G44) ->  | AH64: 3 | AI64: =IF('CRITERIOS CALIFICACION'!D39="","",'CRITERIOS CALIFICACION'!D39) -> Abortos inferiores al 3% con vacuna de clamidia a la reposicion
AH65: 2 | AI65: =IF('CRITERIOS CALIFICACION'!D40="","",'CRITERIOS CALIFICACION'!D40) -> Abortos ocasionales con diagnostico claro y ovejas vacunadas
A66: =IF(F85="","",F85) ->  | B66: =IF($A$66="","",VLOOKUP($A$66,$A$54:$K$64,B53,FALSE)) ->  | E66: =IF($A$66="","",VLOOKUP($A$66,$A$54:$K$64,E53,FALSE)) ->  | F66: =IF($A$66="","",VLOOKUP($A$66,$A$54:$K$64,F53,FALSE)) ->  | G66: =IF($A$66="","",VLOOKUP($A$66,$A$54:$K$64,G53,FALSE)) ->  | J66: =IF($A$66="","",VLOOKUP($A$66,$A$54:$K$64,J53,FALSE)) ->  | K66: =IF($A$66="","",VLOOKUP($A$66,$A$54:$K$64,K53,FALSE)) ->  | AH66: 1 | AI66: =IF('CRITERIOS CALIFICACION'!D41="","",'CRITERIOS CALIFICACION'!D41) -> Abortos habituales con dfagnostico claro de varios procesos
AH67: 0 | AI67: =IF('CRITERIOS CALIFICACION'!D42="","",'CRITERIOS CALIFICACION'!D42) -> Tormentas de abortos no diagnosticados
A68: CALENDARIO | E68: =IF(A66="","",G52+G66) ->  | F68: =IF(E68="","",$F$66) ->  | J68: =IF(E68="","",$J$66) ->  | AG68: Plan Sanitario | AH68: 4 | AI68: =IF('CRITERIOS CALIFICACION'!D43="","",'CRITERIOS CALIFICACION'!D43) -> Establecimiento de protocolos de prevención y curación. Cumplimiento de los mismos. Bioseguridad.
E69: =IF(E68="","",E68+G66) ->  | F69: =IF(E69="","",$F$66) ->  | J69: =IF(E69="","",$J$66) ->  | AH69: 3 | AI69: =IF('CRITERIOS CALIFICACION'!D44="","",'CRITERIOS CALIFICACION'!D44) -> Existe protocolo pero no siempre se cumple
E70: =IF(E69="","",E69+G66) ->  | AH70: 2 | AI70: =IF('CRITERIOS CALIFICACION'!D45="","",'CRITERIOS CALIFICACION'!D45) -> No existe protocolo pero obtiene unos resultados aceptables en sanidad.
E71: =IF(E70="","",E70+G66) ->  | AH71: 1 | AI71: =IF('CRITERIOS CALIFICACION'!D46="","",'CRITERIOS CALIFICACION'!D46) -> Vacunación o desparasitación ocasional
E72: =IF(E71="","",E71+G66) ->  | J72: =IF(E72="","",$J$66) ->  | AH72: 0 | AI72: =IF('CRITERIOS CALIFICACION'!D47="","",'CRITERIOS CALIFICACION'!D47) -> No existe protocolo sanitario y no existe profilaxis ni siquiera ocasionalmente
E73: =IF(E72="","",E72+G66) ->  | AG73: Calidad orígenes | AH73: 4 | AI73: =IF('CRITERIOS CALIFICACION'!D48="","",'CRITERIOS CALIFICACION'!D48) -> Nula incidencia de procesos crónicos y medidas de vacunación y bioseguridad
AH74: 3 | AI74: =IF('CRITERIOS CALIFICACION'!D49="","",'CRITERIOS CALIFICACION'!D49) -> Escasa incidencia de procesos crónicos y medidas de vacunación y bioseguridad
AH75: 2 | AI75: =IF('CRITERIOS CALIFICACION'!D50="","",'CRITERIOS CALIFICACION'!D50) -> Baja incidencia de una enfermedad cronica predominante y diagnosticada
AH76: 1 | AI76: =IF('CRITERIOS CALIFICACION'!D51="","",'CRITERIOS CALIFICACION'!D51) -> Incidencia media de enfermedades crónicas con diagnostico
AH77: 0 | AI77: =IF('CRITERIOS CALIFICACION'!D52="","",'CRITERIOS CALIFICACION'!D52) -> Alta incidencia de enfermedades crónicas sin diagnostico claro
AG78: Control animales extraños | AH78: 4 | AI78: =IF('CRITERIOS CALIFICACION'!D53="","",'CRITERIOS CALIFICACION'!D53) -> Programa DDD y su cumplimiento. Vigila perros y gatos de la explotación. Dersparasitación perros. Control animales externos sistematizado.
AH79: 3 | AI79: =IF('CRITERIOS CALIFICACION'!D54="","",'CRITERIOS CALIFICACION'!D54) -> Programa DDD y su cumplimiento. Vigila perros y gatos de la explotación. Dersparasitación perros. No controla siempre animales externos
AH80: 2 | AI80: =IF('CRITERIOS CALIFICACION'!D55="","",'CRITERIOS CALIFICACION'!D55) -> Programa DDD y su cumplimiento. Vigila perros y gatos de la explotación. No desparasita perros siempre. No controla siempre animales externos
AH81: 1 | AI81: =IF('CRITERIOS CALIFICACION'!D56="","",'CRITERIOS CALIFICACION'!D56) -> Programa DDD y su cumplimiento. No vigila perros ni gatos.
AH82: 0 | AI82: =IF('CRITERIOS CALIFICACION'!D57="","",'CRITERIOS CALIFICACION'!D57) -> Ningún control sobre animales externos.
AG83: Comederos y forrajeras | AH83: 4 | AI83: =IF('CRITERIOS CALIFICACION'!D64="","",'CRITERIOS CALIFICACION'!D64) -> Disponibilidad sobrada de comederos y pajeras , limpios y de facil acceso a los animales. Suelo limpio y seco en espacio de comederos y pajeras.
AH84: 3 | AI84: =IF('CRITERIOS CALIFICACION'!D65="","",'CRITERIOS CALIFICACION'!D65) -> Disponibilidad sobrada de comederos y pajeras , limpios y situados solo en una parte de la cuadra. Suelo limpio y seco.
A85: =A54&B54 ->  | B85: =IF('CALENDARIO TOMA DE MUESTRAS'!D13="","",'CALENDARIO TOMA DE MUESTRAS'!D13) ->  | E85: =IF(B85="","",LEFT(B85,1)) ->  | F85: =IF(E85="","",VALUE(E85)) ->  | AH85: 2 | AI85: =IF('CRITERIOS CALIFICACION'!D66="","",'CRITERIOS CALIFICACION'!D66) -> Adecuada disponibilidad de comederos y pajeras. Limpios y suelo algo húmedo
A86: =A55&B55 ->  | AH86: 1 | AI86: =IF('CRITERIOS CALIFICACION'!D67="","",'CRITERIOS CALIFICACION'!D67) -> Adecuada disponibilidad de comederos y pajeras. Sucios.
AH87: 0 | AI87: =IF('CRITERIOS CALIFICACION'!D68="","",'CRITERIOS CALIFICACION'!D68) -> Insuficiente disponibilidad de comederos y pajeras.
AG88: Bebederos | AH88: 4 | AI88: =IF('CRITERIOS CALIFICACION'!D69="","",'CRITERIOS CALIFICACION'!D69) -> Número y/o superficie de bebederos sobrado respecto a la densidad de los animales. Bebederos limpios y bien repartidos en las cuadras. Suelo seco
AH89: 3 | AI89: =IF('CRITERIOS CALIFICACION'!D70="","",'CRITERIOS CALIFICACION'!D70) -> Número y/o superficie de bebederos adecuado respecto a la densidad de los animales. Bebederos limpios y bien repartidos en las cuadras. Suelo seco
AH90: 2 | AI90: =IF('CRITERIOS CALIFICACION'!D71="","",'CRITERIOS CALIFICACION'!D71) -> Número y/o superficie de bebederos adecuado respecto a la densidad de los animales. Bebederos limpios en un solo emplazamiento. Suelo seco
AH91: 1 | AI91: =IF('CRITERIOS CALIFICACION'!D72="","",'CRITERIOS CALIFICACION'!D72) -> Número y/o superficie de bebederos adecuado respecto a la densidad de los animales. Bebederos sucios o suelo húmedo
AH92: 0 | AI92: =IF('CRITERIOS CALIFICACION'!D73="","",'CRITERIOS CALIFICACION'!D73) -> Número y/o superficie de bebederos inadecuado respecto a la densidad de los animales.
AG93: Carga Ambiental | AH93: 4 | AI93: =IF('CRITERIOS CALIFICACION'!D74="","",'CRITERIOS CALIFICACION'!D74) -> Detección de carga de amoniaco cuantificada y sin olor ni carga ambiental
AH94: 3 | AI94: =IF('CRITERIOS CALIFICACION'!D75="","",'CRITERIOS CALIFICACION'!D75) -> No olor ni carga ambiental.
AH95: 2 | AI95: =IF('CRITERIOS CALIFICACION'!D76="","",'CRITERIOS CALIFICACION'!D76) -> Olor ligeramente perceptible pero que no queda impregnado en la ropa
AH96: 1 | AI96: =IF('CRITERIOS CALIFICACION'!D77="","",'CRITERIOS CALIFICACION'!D77) -> Olor claramente perceptible. Quede impregnado en la ropa.
AH97: 0 | AI97: =IF('CRITERIOS CALIFICACION'!D78="","",'CRITERIOS CALIFICACION'!D78) -> Olor y carga ambiental claramente nocivo.
AG98: Aislamiento cubierta | AH98: 4 | AI98: =IF('CRITERIOS CALIFICACION'!D79="","",'CRITERIOS CALIFICACION'!D79) -> Cubierta bien aislada. Sin condensación en la nave. Diferencias de temperatura y humedad con el exterior adecuadas según estación del año. Instrumentos de control
A99: =IF('DEFINICION INDICADORES'!B56="","",'DEFINICION INDICADORES'!B56) -> TRONCO "REDUCE" | B99: =IF('DEFINICION INDICADORES'!C56="","",'DEFINICION INDICADORES'!C56) -> 1 | C99: =IF('DEFINICION INDICADORES'!D56="","",'DEFINICION INDICADORES'!D56) -> R | D99: =IF('DEFINICION INDICADORES'!E56="","",'DEFINICION INDICADORES'!E56) -> Disminucion del uso de piensos medicamentosos | E99: =IF('DEFINICION INDICADORES'!F56="","",'DEFINICION INDICADORES'!F56) -> 1 | F99: =IF('DEFINICION INDICADORES'!G56="","",'DEFINICION INDICADORES'!G56) -> 3 | G99: =IF('HOJA DIAGNOSTICO REDUCE'!$E$13="","",'HOJA DIAGNOSTICO REDUCE'!E13) ->  | H99: =IF(G99="","",((G99-F99)/F99)+1) ->  | AH99: 3 | AI99: =IF('CRITERIOS CALIFICACION'!D80="","",'CRITERIOS CALIFICACION'!D80) -> Cubierta bien aislada. Sin condensación en la nave. Diferencias de temperatura y humedad con el exterior adecuadas según estación del año.
A100: =IF('DEFINICION INDICADORES'!B57="","",'DEFINICION INDICADORES'!B57) ->  | B100: =IF('DEFINICION INDICADORES'!C57="","",'DEFINICION INDICADORES'!C57) -> 2 | C100: =IF('DEFINICION INDICADORES'!D57="","",'DEFINICION INDICADORES'!D57) -> R | D100: =IF('DEFINICION INDICADORES'!E57="","",'DEFINICION INDICADORES'!E57) -> Uso de antibióticos CATEGORIA D | E100: =IF('DEFINICION INDICADORES'!F57="","",'DEFINICION INDICADORES'!F57) -> 1 | F100: =IF('DEFINICION INDICADORES'!G57="","",'DEFINICION INDICADORES'!G57) -> 3 | G100: =IF('HOJA DIAGNOSTICO REDUCE'!$E$13="","",'HOJA DIAGNOSTICO REDUCE'!E14) ->  | H100: =IF(G100="","",((G100-F100)/F100)+1) ->  | AH100: 2 | AI100: =IF('CRITERIOS CALIFICACION'!D81="","",'CRITERIOS CALIFICACION'!D81) -> Cubierta aislada pero con algún defecto. En general buenas coindiciones ambientales pero se nota el calor o frío extremo.
A101: =IF('DEFINICION INDICADORES'!B58="","",'DEFINICION INDICADORES'!B58) ->  | B101: =IF('DEFINICION INDICADORES'!C58="","",'DEFINICION INDICADORES'!C58) -> 3 | C101: =IF('DEFINICION INDICADORES'!D58="","",'DEFINICION INDICADORES'!D58) -> R | D101: =IF('DEFINICION INDICADORES'!E58="","",'DEFINICION INDICADORES'!E58) -> Plan-Informe sanitario. Auditorías anuales | E101: =IF('DEFINICION INDICADORES'!F58="","",'DEFINICION INDICADORES'!F58) -> 1 | F101: =IF('DEFINICION INDICADORES'!G58="","",'DEFINICION INDICADORES'!G58) -> 3 | G101: =IF('HOJA DIAGNOSTICO REDUCE'!$E$13="","",'HOJA DIAGNOSTICO REDUCE'!E15) ->  | AH101: 1 | AI101: =IF('CRITERIOS CALIFICACION'!D82="","",'CRITERIOS CALIFICACION'!D82) -> Cubierta sin aislar pero no hay condensación y mantiene condiciones ambientales adecuadas
A102: =IF('DEFINICION INDICADORES'!B59="","",'DEFINICION INDICADORES'!B59) ->  | B102: =IF('DEFINICION INDICADORES'!C59="","",'DEFINICION INDICADORES'!C59) -> 4 | C102: =IF('DEFINICION INDICADORES'!D59="","",'DEFINICION INDICADORES'!D59) -> R | D102: =IF('DEFINICION INDICADORES'!E59="","",'DEFINICION INDICADORES'!E59) -> % de animales con tratamiento metafiláctico | E102: =IF('DEFINICION INDICADORES'!F59="","",'DEFINICION INDICADORES'!F59) -> 1 | F102: =IF('DEFINICION INDICADORES'!G59="","",'DEFINICION INDICADORES'!G59) -> 3 | G102: =IF('HOJA DIAGNOSTICO REDUCE'!$E$13="","",'HOJA DIAGNOSTICO REDUCE'!E16) ->  | AH102: 0 | AI102: =IF('CRITERIOS CALIFICACION'!D83="","",'CRITERIOS CALIFICACION'!D83) -> Cubierta sin aislar. Condensación y/o mucho calor en verano
A103: =IF('DEFINICION INDICADORES'!B60="","",'DEFINICION INDICADORES'!B60) ->  | B103: =IF('DEFINICION INDICADORES'!C60="","",'DEFINICION INDICADORES'!C60) -> 5 | C103: =IF('DEFINICION INDICADORES'!D60="","",'DEFINICION INDICADORES'!D60) -> R | D103: =IF('DEFINICION INDICADORES'!E60="","",'DEFINICION INDICADORES'!E60) -> Monitorización de explotación | E103: =IF('DEFINICION INDICADORES'!F60="","",'DEFINICION INDICADORES'!F60) -> 1 | F103: =IF('DEFINICION INDICADORES'!G60="","",'DEFINICION INDICADORES'!G60) -> 3 | G103: =IF('HOJA DIAGNOSTICO REDUCE'!$E$13="","",'HOJA DIAGNOSTICO REDUCE'!E17) ->  | AG103: Dimensionado y Ventilación | AH103: 4 | AI103: =IF('CRITERIOS CALIFICACION'!D84="","",'CRITERIOS CALIFICACION'!D84) -> Volumen estático, entradas ny salidas de aire y velocidad del aire adecuadas. Medición sistemática del ambiente d ela nave.
A104: =IF('DEFINICION INDICADORES'!B61="","",'DEFINICION INDICADORES'!B61) ->  | B104: =IF('DEFINICION INDICADORES'!C61="","",'DEFINICION INDICADORES'!C61) ->  | C104: =IF('DEFINICION INDICADORES'!D61="","",'DEFINICION INDICADORES'!D61) ->  | D104: Evaluación GOBAL "REDUCE" | E104: =IF('DEFINICION INDICADORES'!F61="","",'DEFINICION INDICADORES'!F61) -> 20 | F104: =IF('DEFINICION INDICADORES'!G61="","",'DEFINICION INDICADORES'!G61) -> 15 | G104: =IF(G99="","",SUM(G99:G103)) ->  | H104: =IF(G104="","",((G104-F104)/F104)+1) ->  | AH104: 3 | AI104: =IF('CRITERIOS CALIFICACION'!D85="","",'CRITERIOS CALIFICACION'!D85) -> Volumen estático, entradas y salidas de aire y velocidad del aire adecuadas.
A105: =IF('DEFINICION INDICADORES'!B62="","",'DEFINICION INDICADORES'!B62) ->  | B105: =IF('DEFINICION INDICADORES'!C62="","",'DEFINICION INDICADORES'!C62) ->  | C105: =IF('DEFINICION INDICADORES'!D62="","",'DEFINICION INDICADORES'!D62) ->  | D105: =IF('DEFINICION INDICADORES'!E62="","",'DEFINICION INDICADORES'!E62) ->  | AH105: 2 | AI105: =IF('CRITERIOS CALIFICACION'!D86="","",'CRITERIOS CALIFICACION'!D86) -> Volumen estático, entradas y salidas de aire adecuadas. Corrientes en invierno o poco aire en verano
G106: =IF('DEFINICION INDICADORES'!H61="","",'DEFINICION INDICADORES'!H61) -> 0.75 | H106: =IF(G104="","",G104/E104) ->  | AH106: 1 | AI106: =IF('CRITERIOS CALIFICACION'!D87="","",'CRITERIOS CALIFICACION'!D87) -> Volumen estático o entradas y salidas adecuadas.
AH107: 0 | AI107: =IF('CRITERIOS CALIFICACION'!D88="","",'CRITERIOS CALIFICACION'!D88) -> No cumple ni volumen estático ni entradas y salidas de aire.
AG108: Densidad animal | AH108: 4 | AI108: =IF('CRITERIOS CALIFICACION'!D96="","",'CRITERIOS CALIFICACION'!D96) -> Mas de 2 m2 por oveja
AH109: 3 | AI109: =IF('CRITERIOS CALIFICACION'!D97="","",'CRITERIOS CALIFICACION'!D97) -> Entre 1.5 y 2 m2 por oveja
AH110: 2 | AI110: =IF('CRITERIOS CALIFICACION'!D98="","",'CRITERIOS CALIFICACION'!D98) -> Entre 1 y 1.5 m2 por oveja
AH111: 1 | AI111: =IF('CRITERIOS CALIFICACION'!D99="","",'CRITERIOS CALIFICACION'!D99) -> Menos de 1 m2 por oveja presente
AH112: 0 | AI112: =IF('CRITERIOS CALIFICACION'!D100="","",'CRITERIOS CALIFICACION'!D100) -> Animales hacinados
AG113: Calidad de cama | AH113: 4 | AI113: =IF('CRITERIOS CALIFICACION'!D101="","",'CRITERIOS CALIFICACION'!D101) -> Cama limpia, seca y abundante y de renovado diario.
AH114: 3 | AI114: =IF('CRITERIOS CALIFICACION'!D102="","",'CRITERIOS CALIFICACION'!D102) -> Cama limpia, seca y abundante y de renovado no diario
AH115: 2 | AI115: =IF('CRITERIOS CALIFICACION'!D103="","",'CRITERIOS CALIFICACION'!D103) -> Cumple al menos dos caracteristicas
AH116: 1 | AI116: =IF('CRITERIOS CALIFICACION'!D104="","",'CRITERIOS CALIFICACION'!D104) -> Cumple solo una caracteristica
AH117: 0 | AI117: =IF('CRITERIOS CALIFICACION'!D105="","",'CRITERIOS CALIFICACION'!D105) -> No cumple ninguna de las tres características
AG118: Alteración conducta. Estrés | AH118: 4 | AI118: =IF('CRITERIOS CALIFICACION'!D106="","",'CRITERIOS CALIFICACION'!D106) -> Más del 90% de animales tumbados y no se ven esterotipias
AH119: 3 | AI119: =IF('CRITERIOS CALIFICACION'!D107="","",'CRITERIOS CALIFICACION'!D107) -> Entre 80 y 90% de animales tumbados. No esterotipias
AH120: 2 | AI120: =IF('CRITERIOS CALIFICACION'!D108="","",'CRITERIOS CALIFICACION'!D108) -> Entre 60 y 80% de animales tumbados o se ven esteritipias
AH121: 1 | AI121: =IF('CRITERIOS CALIFICACION'!D109="","",'CRITERIOS CALIFICACION'!D109) -> Menos del 60% de animales tumbados o se ven esterotipias
AH122: 0 | AI122: =IF('CRITERIOS CALIFICACION'!D110="","",'CRITERIOS CALIFICACION'!D110) -> Esterotipias claras y animales estresados
AG123: Condiciones Carga y Descarga | AH123: 4 | AI123: =IF('CRITERIOS CALIFICACION'!D111="","",'CRITERIOS CALIFICACION'!D111) -> Nula incidencia de cojeras. Lana perfecta
AH124: 3 | AI124: =IF('CRITERIOS CALIFICACION'!D112="","",'CRITERIOS CALIFICACION'!D112) -> Escasa incidencia de cojeras. Lana perfecta
AH125: 2 | AI125: =IF('CRITERIOS CALIFICACION'!D113="","",'CRITERIOS CALIFICACION'!D113) -> Baja incidencia de cojeras con diagnostico claro y medidas de prevencion. Algunas ovejas peladas
AH126: 1 | AI126: =IF('CRITERIOS CALIFICACION'!D114="","",'CRITERIOS CALIFICACION'!D114) -> Evidente incidencia de cojeras sin diagnostico confirmado y/o ovejas con mala calidad de lana
AH127: 0 | AI127: =IF('CRITERIOS CALIFICACION'!D115="","",'CRITERIOS CALIFICACION'!D115) -> Alta incidencia de animales con mala apariencia y/o cojeras
AG128: Estado externo animales | AH128: 4 | AI128: =IF('CRITERIOS CALIFICACION'!D116="","",'CRITERIOS CALIFICACION'!D116) -> Capa limpia y brillante, estado corporal bueno y adecuado a animales de cebo
AH129: 3 | AI129: =IF('CRITERIOS CALIFICACION'!D117="","",'CRITERIOS CALIFICACION'!D117) -> Capa limpia y suciedad solo en pezuñas.. Buen estado corporal
AH130: 2 | AI130: =IF('CRITERIOS CALIFICACION'!D118="","",'CRITERIOS CALIFICACION'!D118) -> Suciedad hasta corvejones. Capa limpia y buen estado corporal.
AH131: 1 | AI131: =IF('CRITERIOS CALIFICACION'!D119="","",'CRITERIOS CALIFICACION'!D119) -> Capa sucia y buen estado corporal.
AH132: 0 | AI132: =IF('CRITERIOS CALIFICACION'!D120="","",'CRITERIOS CALIFICACION'!D120) -> Mal estado corporal
AG133: Libro de explotacion | AH133: 4 | AI133: =IF('CRITERIOS CALIFICACION'!D128="","",'CRITERIOS CALIFICACION'!D128) -> Libro de esxplotación en el que figure el censo actualizado y movimientos de los animales. Entradas y salidas y tratamientos veterinarios. Entradas de alimentos
AH134: 3 | AI134: =IF('CRITERIOS CALIFICACION'!D129="","",'CRITERIOS CALIFICACION'!D129) -> Libro de esxplotación en el que figure el censo actualizado y movimientos de los animales. Entradas y salidas y tratamientos veterinarios.
AH135: 2 | AI135: =IF('CRITERIOS CALIFICACION'!D130="","",'CRITERIOS CALIFICACION'!D130) -> Libro de esxplotación en el que figure el censo actualizado. Entradas y salidas y tratamientos veterinarios.
AH136: 1 | AI136: =IF('CRITERIOS CALIFICACION'!D131="","",'CRITERIOS CALIFICACION'!D131) -> Libro de esxplotación en el que figure el censo actualizado.Tratamientos veterinarios.
AH137: 0 | AI137: =IF('CRITERIOS CALIFICACION'!D132="","",'CRITERIOS CALIFICACION'!D132) -> Libro de explotación inexistente o sin rellenar
AG138: Formación del Ganadero | AH138: 4 | AI138: =IF('CRITERIOS CALIFICACION'!D133="","",'CRITERIOS CALIFICACION'!D133) -> Alta cualificación del ganadero. Conocimientos aplicados a la explotación.
AH139: 3 | AI139: =IF('CRITERIOS CALIFICACION'!D134="","",'CRITERIOS CALIFICACION'!D134) -> Titulación obligatoria y algunas titulaciones complementarias
AH140: 2 | AI140: =IF('CRITERIOS CALIFICACION'!D135="","",'CRITERIOS CALIFICACION'!D135) -> Titulación obligatoria solamente
AH141: 1 | AI141: =IF('CRITERIOS CALIFICACION'!D136="","",'CRITERIOS CALIFICACION'!D136) -> Sin titulación pero con larga experiencia
AH142: 0 | AI142: =IF('CRITERIOS CALIFICACION'!D137="","",'CRITERIOS CALIFICACION'!D137) -> Calificaión nula o inexistente
AG143: Gestión Medioambiental | AH143: 4 | AI143: =IF('CRITERIOS CALIFICACION'!D138="","",'CRITERIOS CALIFICACION'!D138) -> Gestión de residuos documentada. Vacíos sanitarios de al menos dos veces al año con documentación cuplimentada.Tratamientos DDD realizados y documentados
AH144: 3 | AI144: =IF('CRITERIOS CALIFICACION'!D139="","",'CRITERIOS CALIFICACION'!D139) -> Documentación ajustada a la normativa y actualizada.
AH145: 2 | AI145: =IF('CRITERIOS CALIFICACION'!D140="","",'CRITERIOS CALIFICACION'!D140) -> Documentación existente pero no actualizada. Gestión medioambiental programada
AH146: 1 | AI146: =IF('CRITERIOS CALIFICACION'!D141="","",'CRITERIOS CALIFICACION'!D141) -> No hay documentación pero realiza una gestión medioambiental opcasional.
AH147: 0 | AI147: =IF('CRITERIOS CALIFICACION'!D142="","",'CRITERIOS CALIFICACION'!D142) -> No existen registros ni hay vacíos sanitarios programados
AG148: Bioseguridad | AH148: 4 | AI148: =IF('CRITERIOS CALIFICACION'!D143="","",'CRITERIOS CALIFICACION'!D143) -> Medidas de bioseguridad excepcionales
AH149: 3 | AI149: =IF('CRITERIOS CALIFICACION'!D144="","",'CRITERIOS CALIFICACION'!D144) -> Medidas de bioseguridad adecuadas en alimentación, control de animales externos, cadaveres y limpieza
AH150: 2 | AI150: =IF('CRITERIOS CALIFICACION'!D145="","",'CRITERIOS CALIFICACION'!D145) -> Medidas de bioseguridad adecuadas en alimentación, control de animales externos, cadaveres.
AH151: 1 | AI151: =IF('CRITERIOS CALIFICACION'!D146="","",'CRITERIOS CALIFICACION'!D146) -> Medidas de bioseguridad adecuadas en alimentación , cadaveres.
AH152: 0 | AI152: =IF('CRITERIOS CALIFICACION'!D147="","",'CRITERIOS CALIFICACION'!D147) -> No hay medidad de bioseguridad
AG153: Carga de Trabajo | AH153: 4 | AI153: =IF('CRITERIOS CALIFICACION'!D148="","",'CRITERIOS CALIFICACION'!D148) -> Mano de obra suficiente. Horarios laborales flexibles.Excelente cualificación y motivación
AH154: 3 | AI154: =IF('CRITERIOS CALIFICACION'!D149="","",'CRITERIOS CALIFICACION'!D149) -> Mano de obra suficiente. Horarios laborales flexibles. Motivación
AH155: 2 | AI155: =IF('CRITERIOS CALIFICACION'!D150="","",'CRITERIOS CALIFICACION'!D150) -> Mano de obra ajustada. Horarios laborales flexibles. Motivación
AH156: 1 | AI156: =IF('CRITERIOS CALIFICACION'!D151="","",'CRITERIOS CALIFICACION'!D151) -> Mano de obra ajustada. Horarios laborales poco flexibles.

Sheet HOJA DIAGNOSTICO
A4: HOJA DE DIAGNÓSTICO | F4: =A4 -> HOJA DE DIAGNÓSTICO
A7: GANADERO | C7: ejemplo | F7: GANADERO | H7: =IF(C7="","",C7) -> ejemplo
A8: FECHA DIAGNOSTICO | C8: 2021-09-01 | F8: FECHA DIAGNOSTICO | H8: =IF(C8="","",C8) -> 2021-09-01
A9: TIPO EXPLOTACION | C9: =IF('DEFINICION INDICADORES'!E15="","",'DEFINICION INDICADORES'!E15) -> CEBO CORDEROS | F9: TIPO EXPLOTACION | H9: =IF(C9="","",C9) -> CEBO CORDEROS
A13: BASES | C13: INDICADORES | D13: CALIFICACIÓN (0-4) | F13: COMENTARIOS
A14: =IF('DEFINICION INDICADORES'!B9="","",'DEFINICION INDICADORES'!B9) -> ALIMENTACION | B14: 1 | C14: =IF('DEFINICION INDICADORES'!E18="","",'DEFINICION INDICADORES'!E18) -> Programa adecuado y adaptado | D14: 4
B15: 2 | C15: =IF('DEFINICION INDICADORES'!E19="","",'DEFINICION INDICADORES'!E19) -> Depósitos y silos pienso | D15: 4
B16: 3 | C16: =IF('DEFINICION INDICADORES'!E20="","",'DEFINICION INDICADORES'!E20) -> Agua de bebida | D16: 4
B17: 4 | C17: =IF('DEFINICION INDICADORES'!E21="","",'DEFINICION INDICADORES'!E21) -> Depósitos y conducción de agua | D17: 3
B18: 5 | C18: =IF('DEFINICION INDICADORES'!E22="","",'DEFINICION INDICADORES'!E22) -> Automatización adecuada | D18: 2
A19: =IF('DEFINICION INDICADORES'!B10="","",'DEFINICION INDICADORES'!B10) -> SANIDAD | B19: 1 | C19: =IF('DEFINICION INDICADORES'!E23="","",'DEFINICION INDICADORES'!E23) -> Ratios mortalidad y desvieje | D19: 4
B20: 2 | C20: =IF('DEFINICION INDICADORES'!E24="","",'DEFINICION INDICADORES'!E24) -> Incidencia de abortos | D20: 1
B21: 3 | C21: =IF('DEFINICION INDICADORES'!E25="","",'DEFINICION INDICADORES'!E25) -> Plan Sanitario | D21: 1
B22: 4 | C22: =IF('DEFINICION INDICADORES'!E26="","",'DEFINICION INDICADORES'!E26) -> Incidencia de enfermedades crónicas | D22: 1
B23: 5 | C23: =IF('DEFINICION INDICADORES'!E27="","",'DEFINICION INDICADORES'!E27) -> Control animales extraños | D23: 2
A24: =IF('DEFINICION INDICADORES'!B11="","",'DEFINICION INDICADORES'!B11) -> INSTALACIONES | B24: 1 | C24: =IF('DEFINICION INDICADORES'!E28="","",'DEFINICION INDICADORES'!E28) -> Comederos y forrajeras | D24: 3
B25: 2 | C25: =IF('DEFINICION INDICADORES'!E29="","",'DEFINICION INDICADORES'!E29) -> Bebederos | D25: 2
B26: 3 | C26: =IF('DEFINICION INDICADORES'!E30="","",'DEFINICION INDICADORES'!E30) -> Carga Ambiental | D26: 2
B27: 4 | C27: =IF('DEFINICION INDICADORES'!E31="","",'DEFINICION INDICADORES'!E31) -> Aislamiento cubierta | D27: 2
B28: 5 | C28: =IF('DEFINICION INDICADORES'!E32="","",'DEFINICION INDICADORES'!E32) -> Dimensionado y Ventilación | D28: 3
A29: =IF('DEFINICION INDICADORES'!B12="","",'DEFINICION INDICADORES'!B12) -> BIENESTAR | B29: 1 | C29: =IF('DEFINICION INDICADORES'!E33="","",'DEFINICION INDICADORES'!E33) -> Densidad animal | D29: 3
B30: 2 | C30: =IF('DEFINICION INDICADORES'!E34="","",'DEFINICION INDICADORES'!E34) -> Calidad de cama | D30: 3
B31: 3 | C31: =IF('DEFINICION INDICADORES'!E35="","",'DEFINICION INDICADORES'!E35) -> Alteración conducta. Estrés | D31: 3
B32: 4 | C32: =IF('DEFINICION INDICADORES'!E36="","",'DEFINICION INDICADORES'!E36) -> Estado de lana y pezuñas | D32: 4
B33: 5 | C33: =IF('DEFINICION INDICADORES'!E37="","",'DEFINICION INDICADORES'!E37) -> Estado externo animales, CC | D33: 3
A34: =IF('DEFINICION INDICADORES'!B13="","",'DEFINICION INDICADORES'!B13) -> FORMACION Y REGISTRO | B34: 1 | C34: =IF('DEFINICION INDICADORES'!E38="","",'DEFINICION INDICADORES'!E38) -> Libro de Explotación actualizado | D34: 3
B35: 2 | C35: =IF('DEFINICION INDICADORES'!E39="","",'DEFINICION INDICADORES'!E39) -> Formación del Ganadero | D35: 3
B36: 3 | C36: =IF('DEFINICION INDICADORES'!E40="","",'DEFINICION INDICADORES'!E40) -> Gestión Medioambiental | D36: 3
B37: 4 | C37: =IF('DEFINICION INDICADORES'!E41="","",'DEFINICION INDICADORES'!E41) -> Bioseguridad | D37: 2
B38: 5 | C38: =IF('DEFINICION INDICADORES'!E42="","",'DEFINICION INDICADORES'!E42) -> Carga de Trabajo | D38: 3

Sheet INFORME DIAGNOSTICO
A5: INFORME DIAGNÓSTICO | F5: =A5 -> INFORME DIAGNÓSTICO | L5: =F5 -> INFORME DIAGNÓSTICO | S5: =L5 -> INFORME DIAGNÓSTICO | AA5: =S5 -> INFORME DIAGNÓSTICO
A9: GANADERO | C9: =IF('HOJA DIAGNOSTICO'!C7="","",'HOJA DIAGNOSTICO'!C7) -> ejemplo | F9: =A9 -> GANADERO | G9: =IF(C9="","",C9) -> ejemplo | L9: =F9 -> GANADERO | M9: =IF(C9="","",C9) -> ejemplo | S9: =L9 -> GANADERO | T9: =IF(M9="","",M9) -> ejemplo | AA9: =S9 -> GANADERO | AB9: =IF(T9="","",T9) -> ejemplo
A10: FECHA DIAGNOSTICO | C10: =IF('HOJA DIAGNOSTICO'!C8="","",'HOJA DIAGNOSTICO'!C8) -> 2021-09-01 | F10: =A10 -> FECHA DIAGNOSTICO | G10: =IF(C10="","",C10) -> 2021-09-01 | L10: =F10 -> FECHA DIAGNOSTICO | M10: =IF(C10="","",C10) -> 2021-09-01 | S10: =L10 -> FECHA DIAGNOSTICO | T10: =IF(M10="","",M10) -> 2021-09-01 | AA10: =S10 -> FECHA DIAGNOSTICO | AB10: =IF(T10="","",T10) -> 2021-09-01
A11: TIPO EXPLOTACION | C11: =IF('HOJA DIAGNOSTICO'!C9="","",'HOJA DIAGNOSTICO'!C9) -> CEBO CORDEROS | F11: TIPO EXPLOTACION | G11: =IF(C11="","",C11) -> CEBO CORDEROS | L11: TIPO EXPLOTACION | M11: =IF(C11="","",C11) -> CEBO CORDEROS | S11: TIPO EXPLOTACION | T11: CEBO CORDEROS | AA11: TIPO EXPLOTACION | AB11: CEBO CORDEROS
A13: BASES | C13: INDICADORES | F13: BASES | G13: NOTA | H13: % | I13: % UMBRAL | J13: CALIFICACIÓN | L13: COMENTARIOS | AA13: TRONCO | AB13: INSTALACIONES
A14: =IF('DEFINICION INDICADORES'!B9="","",'DEFINICION INDICADORES'!B9) -> ALIMENTACION | B14: 1 | C14: =IF('DEFINICION INDICADORES'!E18="","",'DEFINICION INDICADORES'!E18) -> Programa adecuado y adaptado | D14: =IF('ENLACES DATOS'!F14="","",'ENLACES DATOS'!F14) -> 4 | F14: =IF(A14="","",A14) -> ALIMENTACION | G14: =IF('ENLACES DATOS'!J14:J18="","",'ENLACES DATOS'!J14:J18) -> 80 | H14: =IF('ENLACES DATOS'!M14:M18="","",'ENLACES DATOS'!M14:M18) -> 0.8695652174 | I14: =IF('ENLACES DATOS'!N14:N18="","",'ENLACES DATOS'!N14:N18) -> 0.75 | J14: =IF('ENLACES DATOS'!O14:O18="","",'ENLACES DATOS'!O14:O18) -> CONFORME. Intentar mejorar aspectos negativos
B15: 2 | C15: =IF('DEFINICION INDICADORES'!E19="","",'DEFINICION INDICADORES'!E19) -> Depósitos y silos pienso | D15: =IF('ENLACES DATOS'!F15="","",'ENLACES DATOS'!F15) -> 4 | G15: =IF('ENLACES DATOS'!J15:J19="","",'ENLACES DATOS'!J15:J19) ->  | H15: =IF('ENLACES DATOS'!K15:K19="","",'ENLACES DATOS'!K15:K19) ->  | I15: =IF('ENLACES DATOS'!N15:N19="","",'ENLACES DATOS'!N15:N19) ->  | J15: =IF('ENLACES DATOS'!O15:O19="","",'ENLACES DATOS'!O15:O19) ->  | L15: =IF('HOJA DIAGNOSTICO'!F14="","",'HOJA DIAGNOSTICO'!F14) -> 
B16: 3 | C16: =IF('DEFINICION INDICADORES'!E20="","",'DEFINICION INDICADORES'!E20) -> Agua de bebida | D16: =IF('ENLACES DATOS'!F16="","",'ENLACES DATOS'!F16) -> 4 | G16: =IF('ENLACES DATOS'!J16:J20="","",'ENLACES DATOS'!J16:J20) ->  | H16: =IF('ENLACES DATOS'!K16:K20="","",'ENLACES DATOS'!K16:K20) ->  | I16: =IF('ENLACES DATOS'!N16:N20="","",'ENLACES DATOS'!N16:N20) ->  | J16: =IF('ENLACES DATOS'!O16:O20="","",'ENLACES DATOS'!O16:O20) ->  | L16: =IF('HOJA DIAGNOSTICO'!F15="","",'HOJA DIAGNOSTICO'!F15) -> 
B17: 4 | C17: =IF('DEFINICION INDICADORES'!E21="","",'DEFINICION INDICADORES'!E21) -> Depósitos y conducción de agua | D17: =IF('ENLACES DATOS'!F17="","",'ENLACES DATOS'!F17) -> 3 | G17: =IF('ENLACES DATOS'!J17:J21="","",'ENLACES DATOS'!J17:J21) ->  | H17: =IF('ENLACES DATOS'!K17:K21="","",'ENLACES DATOS'!K17:K21) ->  | I17: =IF('ENLACES DATOS'!N17:N21="","",'ENLACES DATOS'!N17:N21) ->  | J17: =IF('ENLACES DATOS'!O17:O21="","",'ENLACES DATOS'!O17:O21) ->  | L17: =IF('HOJA DIAGNOSTICO'!F16="","",'HOJA DIAGNOSTICO'!F16) -> 
B18: 5 | C18: =IF('DEFINICION INDICADORES'!E22="","",'DEFINICION INDICADORES'!E22) -> Automatización adecuada | D18: =IF('ENLACES DATOS'!F18="","",'ENLACES DATOS'!F18) -> 2 | G18: =IF('ENLACES DATOS'!J18:J22="","",'ENLACES DATOS'!J18:J22) ->  | H18: =IF('ENLACES DATOS'!K18:K22="","",'ENLACES DATOS'!K18:K22) ->  | I18: =IF('ENLACES DATOS'!N18:N22="","",'ENLACES DATOS'!N18:N22) ->  | J18: =IF('ENLACES DATOS'!O18:O22="","",'ENLACES DATOS'!O18:O22) ->  | L18: =IF('HOJA DIAGNOSTICO'!F17="","",'HOJA DIAGNOSTICO'!F17) -> 
A19: =IF('DEFINICION INDICADORES'!B10="","",'DEFINICION INDICADORES'!B10) -> SANIDAD | B19: 1 | C19: =IF('DEFINICION INDICADORES'!E23="","",'DEFINICION INDICADORES'!E23) -> Ratios mortalidad y desvieje | D19: =IF('ENLACES DATOS'!F19="","",'ENLACES DATOS'!F19) -> 4 | F19: =IF(A19="","",A19) -> SANIDAD | G19: =IF('ENLACES DATOS'!J19:J23="","",'ENLACES DATOS'!J19:J23) -> 46 | H19: =IF('ENLACES DATOS'!M19:M23="","",'ENLACES DATOS'!M19:M23) -> 0.46 | I19: =IF('ENLACES DATOS'!N19:N23="","",'ENLACES DATOS'!N19:N23) -> 0.8 | J19: =IF('ENLACES DATOS'!O19:O23="","",'ENLACES DATOS'!O19:O23) -> NO CONFORME: Es fundamental corregir los aspectos negativos | L19: =IF('HOJA DIAGNOSTICO'!F18="","",'HOJA DIAGNOSTICO'!F18) -> 
B20: 2 | C20: =IF('DEFINICION INDICADORES'!E24="","",'DEFINICION INDICADORES'!E24) -> Incidencia de abortos | D20: =IF('ENLACES DATOS'!F20="","",'ENLACES DATOS'!F20) -> 1 | G20: =IF('ENLACES DATOS'!J20:J24="","",'ENLACES DATOS'!J20:J24) ->  | H20: =IF('ENLACES DATOS'!K20:K24="","",'ENLACES DATOS'!K20:K24) ->  | I20: =IF('ENLACES DATOS'!N20:N24="","",'ENLACES DATOS'!N20:N24) ->  | J20: =IF('ENLACES DATOS'!O20:O24="","",'ENLACES DATOS'!O20:O24) ->  | L20: =IF('HOJA DIAGNOSTICO'!F19="","",'HOJA DIAGNOSTICO'!F19) -> 
B21: 3 | C21: =IF('DEFINICION INDICADORES'!E25="","",'DEFINICION INDICADORES'!E25) -> Plan Sanitario | D21: =IF('ENLACES DATOS'!F21="","",'ENLACES DATOS'!F21) -> 1 | G21: =IF('ENLACES DATOS'!J21:J25="","",'ENLACES DATOS'!J21:J25) ->  | H21: =IF('ENLACES DATOS'!K21:K25="","",'ENLACES DATOS'!K21:K25) ->  | I21: =IF('ENLACES DATOS'!N21:N25="","",'ENLACES DATOS'!N21:N25) ->  | J21: =IF('ENLACES DATOS'!O21:O25="","",'ENLACES DATOS'!O21:O25) ->  | L21: =IF('HOJA DIAGNOSTICO'!F20="","",'HOJA DIAGNOSTICO'!F20) -> 
B22: 4 | C22: =IF('DEFINICION INDICADORES'!E26="","",'DEFINICION INDICADORES'!E26) -> Incidencia de enfermedades crónicas | D22: =IF('ENLACES DATOS'!F22="","",'ENLACES DATOS'!F22) -> 1 | G22: =IF('ENLACES DATOS'!J22:J26="","",'ENLACES DATOS'!J22:J26) ->  | H22: =IF('ENLACES DATOS'!K22:K26="","",'ENLACES DATOS'!K22:K26) ->  | I22: =IF('ENLACES DATOS'!N22:N26="","",'ENLACES DATOS'!N22:N26) ->  | J22: =IF('ENLACES DATOS'!O22:O26="","",'ENLACES DATOS'!O22:O26) ->  | L22: =IF('HOJA DIAGNOSTICO'!F21="","",'HOJA DIAGNOSTICO'!F21) -> 
B23: 5 | C23: =IF('DEFINICION INDICADORES'!E27="","",'DEFINICION INDICADORES'!E27) -> Control animales extraños | D23: =IF('ENLACES DATOS'!F23="","",'ENLACES DATOS'!F23) -> 2 | G23: =IF('ENLACES DATOS'!J23:J27="","",'ENLACES DATOS'!J23:J27) ->  | H23: =IF('ENLACES DATOS'!K23:K27="","",'ENLACES DATOS'!K23:K27) ->  | I23: =IF('ENLACES DATOS'!N23:N27="","",'ENLACES DATOS'!N23:N27) ->  | J23: =IF('ENLACES DATOS'!O23:O27="","",'ENLACES DATOS'!O23:O27) ->  | L23: =IF('HOJA DIAGNOSTICO'!F22="","",'HOJA DIAGNOSTICO'!F22) -> 
A24: =IF('DEFINICION INDICADORES'!B11="","",'DEFINICION INDICADORES'!B11) -> INSTALACIONES | B24: 1 | C24: =IF('DEFINICION INDICADORES'!E28="","",'DEFINICION INDICADORES'!E28) -> Comederos y forrajeras | D24: =IF('ENLACES DATOS'!F24="","",'ENLACES DATOS'!F24) -> 3 | F24: =IF(A24="","",A24) -> INSTALACIONES | G24: =IF('ENLACES DATOS'!J24:J28="","",'ENLACES DATOS'!J24:J28) -> 51 | H24: =IF('ENLACES DATOS'!M24:M28="","",'ENLACES DATOS'!M24:M28) -> 0.6071428571 | I24: =IF('ENLACES DATOS'!N24:N28="","",'ENLACES DATOS'!N24:N28) -> 0.75 | J24: =IF('ENLACES DATOS'!O24:O28="","",'ENLACES DATOS'!O24:O28) -> NO CONFORME: Es fundamental corregir los aspectos negativos | L24: =IF('HOJA DIAGNOSTICO'!F23="","",'HOJA DIAGNOSTICO'!F23) -> 
B25: 2 | C25: =IF('DEFINICION INDICADORES'!E29="","",'DEFINICION INDICADORES'!E29) -> Bebederos | D25: =IF('ENLACES DATOS'!F25="","",'ENLACES DATOS'!F25) -> 2 | G25: =IF('ENLACES DATOS'!J25:J29="","",'ENLACES DATOS'!J25:J29) ->  | H25: =IF('ENLACES DATOS'!K25:K29="","",'ENLACES DATOS'!K25:K29) ->  | I25: =IF('ENLACES DATOS'!N25:N29="","",'ENLACES DATOS'!N25:N29) ->  | J25: =IF('ENLACES DATOS'!O25:O29="","",'ENLACES DATOS'!O25:O29) ->  | L25: =IF('HOJA DIAGNOSTICO'!F24="","",'HOJA DIAGNOSTICO'!F24) -> 
B26: 3 | C26: =IF('DEFINICION INDICADORES'!E30="","",'DEFINICION INDICADORES'!E30) -> Carga Ambiental | D26: =IF('ENLACES DATOS'!F26="","",'ENLACES DATOS'!F26) -> 2 | G26: =IF('ENLACES DATOS'!J26:J30="","",'ENLACES DATOS'!J26:J30) ->  | H26: =IF('ENLACES DATOS'!K26:K30="","",'ENLACES DATOS'!K26:K30) ->  | I26: =IF('ENLACES DATOS'!N26:N30="","",'ENLACES DATOS'!N26:N30) ->  | J26: =IF('ENLACES DATOS'!O26:O30="","",'ENLACES DATOS'!O26:O30) ->  | L26: =IF('HOJA DIAGNOSTICO'!F25="","",'HOJA DIAGNOSTICO'!F25) -> 
B27: 4 | C27: =IF('DEFINICION INDICADORES'!E31="","",'DEFINICION INDICADORES'!E31) -> Aislamiento cubierta | D27: =IF('ENLACES DATOS'!F27="","",'ENLACES DATOS'!F27) -> 2 | G27: =IF('ENLACES DATOS'!J27:J31="","",'ENLACES DATOS'!J27:J31) ->  | H27: =IF('ENLACES DATOS'!K27:K31="","",'ENLACES DATOS'!K27:K31) ->  | I27: =IF('ENLACES DATOS'!N27:N31="","",'ENLACES DATOS'!N27:N31) ->  | J27: =IF('ENLACES DATOS'!O27:O31="","",'ENLACES DATOS'!O27:O31) ->  | L27: =IF('HOJA DIAGNOSTICO'!F26="","",'HOJA DIAGNOSTICO'!F26) -> 
B28: 5 | C28: =IF('DEFINICION INDICADORES'!E32="","",'DEFINICION INDICADORES'!E32) -> Dimensionado y Ventilación | D28: =IF('ENLACES DATOS'!F28="","",'ENLACES DATOS'!F28) -> 3 | G28: =IF('ENLACES DATOS'!J28:J32="","",'ENLACES DATOS'!J28:J32) ->  | H28: =IF('ENLACES DATOS'!K28:K32="","",'ENLACES DATOS'!K28:K32) ->  | I28: =IF('ENLACES DATOS'!N28:N32="","",'ENLACES DATOS'!N28:N32) ->  | J28: =IF('ENLACES DATOS'!O28:O32="","",'ENLACES DATOS'!O28:O32) ->  | L28: =IF('HOJA DIAGNOSTICO'!F27="","",'HOJA DIAGNOSTICO'!F27) -> 
A29: =IF('DEFINICION INDICADORES'!B12="","",'DEFINICION INDICADORES'!B12) -> BIENESTAR | B29: 1 | C29: =IF('DEFINICION INDICADORES'!E33="","",'DEFINICION INDICADORES'!E33) -> Densidad animal | D29: =IF('ENLACES DATOS'!F29="","",'ENLACES DATOS'!F29) -> 3 | F29: =IF(A29="","",A29) -> BIENESTAR | G29: =IF('ENLACES DATOS'!J29:J33="","",'ENLACES DATOS'!J29:J33) -> 60 | H29: =IF('ENLACES DATOS'!M29:M33="","",'ENLACES DATOS'!M29:M33) -> 0.7894736842 | I29: =IF('ENLACES DATOS'!N29:N33="","",'ENLACES DATOS'!N29:N33) -> 0.7 | J29: =IF('ENLACES DATOS'!O29:O33="","",'ENLACES DATOS'!O29:O33) -> CONFORME. Intentar mejorar aspectos negativos | L29: =IF('HOJA DIAGNOSTICO'!F28="","",'HOJA DIAGNOSTICO'!F28) -> 
B30: 2 | C30: =IF('DEFINICION INDICADORES'!E34="","",'DEFINICION INDICADORES'!E34) -> Calidad de cama | D30: =IF('ENLACES DATOS'!F30="","",'ENLACES DATOS'!F30) -> 3 | G30: =IF('ENLACES DATOS'!J30:J34="","",'ENLACES DATOS'!J30:J34) ->  | H30: =IF('ENLACES DATOS'!K30:K34="","",'ENLACES DATOS'!K30:K34) ->  | I30: =IF('ENLACES DATOS'!N30:N34="","",'ENLACES DATOS'!N30:N34) ->  | J30: =IF('ENLACES DATOS'!O30:O34="","",'ENLACES DATOS'!O30:O34) ->  | L30: =IF('HOJA DIAGNOSTICO'!F29="","",'HOJA DIAGNOSTICO'!F29) -> 
B31: 3 | C31: =IF('DEFINICION INDICADORES'!E35="","",'DEFINICION INDICADORES'!E35) -> Alteración conducta. Estrés | D31: =IF('ENLACES DATOS'!F31="","",'ENLACES DATOS'!F31) -> 3 | G31: =IF('ENLACES DATOS'!J31:J35="","",'ENLACES DATOS'!J31:J35) ->  | H31: =IF('ENLACES DATOS'!K31:K35="","",'ENLACES DATOS'!K31:K35) ->  | I31: =IF('ENLACES DATOS'!N31:N35="","",'ENLACES DATOS'!N31:N35) ->  | J31: =IF('ENLACES DATOS'!O31:O35="","",'ENLACES DATOS'!O31:O35) ->  | L31: =IF('HOJA DIAGNOSTICO'!F30="","",'HOJA DIAGNOSTICO'!F30) -> 
B32: 4 | C32: =IF('DEFINICION INDICADORES'!E36="","",'DEFINICION INDICADORES'!E36) -> Estado de lana y pezuñas | D32: =IF('ENLACES DATOS'!F32="","",'ENLACES DATOS'!F32) -> 4 | G32: =IF('ENLACES DATOS'!J32:J36="","",'ENLACES DATOS'!J32:J36) ->  | H32: =IF('ENLACES DATOS'!K32:K36="","",'ENLACES DATOS'!K32:K36) ->  | I32: =IF('ENLACES DATOS'!N32:N36="","",'ENLACES DATOS'!N32:N36) ->  | J32: =IF('ENLACES DATOS'!O32:O36="","",'ENLACES DATOS'!O32:O36) ->  | L32: =IF('HOJA DIAGNOSTICO'!F31="","",'HOJA DIAGNOSTICO'!F31) -> 
B33: 5 | C33: =IF('DEFINICION INDICADORES'!E37="","",'DEFINICION INDICADORES'!E37) -> Estado externo animales, CC | D33: =IF('ENLACES DATOS'!F33="","",'ENLACES DATOS'!F33) -> 3 | G33: =IF('ENLACES DATOS'!J33:J37="","",'ENLACES DATOS'!J33:J37) ->  | H33: =IF('ENLACES DATOS'!K33:K37="","",'ENLACES DATOS'!K33:K37) ->  | I33: =IF('ENLACES DATOS'!N33:N37="","",'ENLACES DATOS'!N33:N37) ->  | J33: =IF('ENLACES DATOS'!O33:O37="","",'ENLACES DATOS'!O33:O37) ->  | L33: =IF('HOJA DIAGNOSTICO'!F32="","",'HOJA DIAGNOSTICO'!F32) -> 
A34: =IF('DEFINICION INDICADORES'!B13="","",'DEFINICION INDICADORES'!B13) -> FORMACION Y REGISTRO | B34: 1 | C34: =IF('DEFINICION INDICADORES'!E38="","",'DEFINICION INDICADORES'!E38) -> Libro de Explotación actualizado | D34: =IF('ENLACES DATOS'!F34="","",'ENLACES DATOS'!F34) -> 3 | F34: =IF(A34="","",A34) -> FORMACION Y REGISTRO | G34: =IF('ENLACES DATOS'!J34:J38="","",'ENLACES DATOS'!J34:J38) -> 33 | H34: =IF('ENLACES DATOS'!M34:M38="","",'ENLACES DATOS'!M34:M38) -> 0.6875 | I34: =IF('ENLACES DATOS'!N34:N38="","",'ENLACES DATOS'!N34:N38) -> 0.65 | J34: =IF('ENLACES DATOS'!O34:O38="","",'ENLACES DATOS'!O34:O38) -> CONFORME. Intentar mejorar aspectos negativos | L34: =IF('HOJA DIAGNOSTICO'!F33="","",'HOJA DIAGNOSTICO'!F33) -> 
B35: 2 | C35: =IF('DEFINICION INDICADORES'!E39="","",'DEFINICION INDICADORES'!E39) -> Formación del Ganadero | D35: =IF('ENLACES DATOS'!F35="","",'ENLACES DATOS'!F35) -> 3 | G35: =IF('ENLACES DATOS'!J35:J39="","",'ENLACES DATOS'!J35:J39) ->  | H35: =IF('ENLACES DATOS'!K35:K39="","",'ENLACES DATOS'!K35:K39) ->  | I35: =IF('ENLACES DATOS'!N35:N39="","",'ENLACES DATOS'!N35:N39) ->  | J35: =IF('ENLACES DATOS'!O35:O39="","",'ENLACES DATOS'!O35:O39) ->  | L35: =IF('HOJA DIAGNOSTICO'!F34="","",'HOJA DIAGNOSTICO'!F34) -> 
B36: 3 | C36: =IF('DEFINICION INDICADORES'!E40="","",'DEFINICION INDICADORES'!E40) -> Gestión Medioambiental | D36: =IF('ENLACES DATOS'!F36="","",'ENLACES DATOS'!F36) -> 3 | G36: =IF('ENLACES DATOS'!J36:J40="","",'ENLACES DATOS'!J36:J40) ->  | H36: =IF('ENLACES DATOS'!K36:K40="","",'ENLACES DATOS'!K36:K40) ->  | I36: =IF('ENLACES DATOS'!N36:N40="","",'ENLACES DATOS'!N36:N40) ->  | J36: =IF('ENLACES DATOS'!O36:O40="","",'ENLACES DATOS'!O36:O40) ->  | L36: =IF('HOJA DIAGNOSTICO'!F35="","",'HOJA DIAGNOSTICO'!F35) -> 
B37: 4 | C37: =IF('DEFINICION INDICADORES'!E41="","",'DEFINICION INDICADORES'!E41) -> Bioseguridad | D37: =IF('ENLACES DATOS'!F37="","",'ENLACES DATOS'!F37) -> 2 | G37: =IF('ENLACES DATOS'!J37:J41="","",'ENLACES DATOS'!J37:J41) ->  | H37: =IF('ENLACES DATOS'!K37:K41="","",'ENLACES DATOS'!K37:K41) ->  | I37: =IF('ENLACES DATOS'!N37:N41="","",'ENLACES DATOS'!N37:N41) ->  | J37: =IF('ENLACES DATOS'!O37:O41="","",'ENLACES DATOS'!O37:O41) ->  | L37: =IF('HOJA DIAGNOSTICO'!F36="","",'HOJA DIAGNOSTICO'!F36) -> 
B38: 5 | C38: =IF('DEFINICION INDICADORES'!E42="","",'DEFINICION INDICADORES'!E42) -> Carga de Trabajo | D38: =IF('ENLACES DATOS'!F38="","",'ENLACES DATOS'!F38) -> 3 | G38: =IF('ENLACES DATOS'!J38:J42="","",'ENLACES DATOS'!J38:J42) ->  | H38: =IF('ENLACES DATOS'!K38:K42="","",'ENLACES DATOS'!K38:K42) ->  | I38: =IF('ENLACES DATOS'!N38:N42="","",'ENLACES DATOS'!N38:N42) ->  | J38: =IF('ENLACES DATOS'!O38:O42="","",'ENLACES DATOS'!O38:O42) ->  | L38: =IF('HOJA DIAGNOSTICO'!F37="","",'HOJA DIAGNOSTICO'!F37) -> 
F40: CALIFICACIÓN GLOBAL | G40: =IF('ENLACES DATOS'!J39="","",'ENLACES DATOS'!J39) -> 270 | H40: =IF('ENLACES DATOS'!M39="","",'ENLACES DATOS'!M39) -> 0.6827363517 | I40: =IF('ENLACES DATOS'!N39="","",'ENLACES DATOS'!N39) -> 0.73 | J40: =IF('ENLACES DATOS'!O39="","",'ENLACES DATOS'!O39) -> NO CONFORME: Es fundamental corregir los aspectos negativos

Sheet GRAFICOS INFORME
A5: GRAFICOS DIAGNOSTICO | F5: =A5 -> GRAFICOS DIAGNOSTICO | K5: =F5 -> GRAFICOS DIAGNOSTICO
F7: =IF('DEFINICION INDICADORES'!B10="","",'DEFINICION INDICADORES'!B10) -> SANIDAD | K7: =IF('DEFINICION INDICADORES'!B12="","",'DEFINICION INDICADORES'!B12) -> BIENESTAR
A9: GANADERO | C9: =IF('HOJA DIAGNOSTICO'!C7="","",'HOJA DIAGNOSTICO'!C7) -> ejemplo
A10: FECHA DIAGNOSTICO | C10: =IF('HOJA DIAGNOSTICO'!C8="","",'HOJA DIAGNOSTICO'!C8) -> 2021-09-01
A11: TIPO EXPLOTACION | C11: =IF('HOJA DIAGNOSTICO'!C9="","",'HOJA DIAGNOSTICO'!C9) -> CEBO CORDEROS
A13: =IF('DEFINICION INDICADORES'!B9="","",'DEFINICION INDICADORES'!B9) -> ALIMENTACION
F23: =IF('DEFINICION INDICADORES'!B11="","",'DEFINICION INDICADORES'!B11) -> INSTALACIONES | K23: =IF('DEFINICION INDICADORES'!B13="","",'DEFINICION INDICADORES'!B13) -> FORMACION Y REGISTRO
B36: NOTA | C36: % | D36: % UMBRAL
A37: CALIFICACIÓN GLOBAL | B37: =IF('ENLACES DATOS'!J39="","",'ENLACES DATOS'!J39) -> 270 | C37: =IF('ENLACES DATOS'!M39="","",'ENLACES DATOS'!M39) -> 0.6827363517 | D37: =IF('ENLACES DATOS'!N39="","",'ENLACES DATOS'!N39) -> 0.73 | E37: =IF('ENLACES DATOS'!O39="","",'ENLACES DATOS'!O39) -> NO CONFORME: Es fundamental corregir los aspectos negativos

Sheet CRITERIOS CALIFICACION
D2: HOJA DE CALIFICACION
C4: INDICADORES | D4: CRITERIOS | F4: CAL
A5: =IF('DEFINICION INDICADORES'!B9="","",'DEFINICION INDICADORES'!B9) -> ALIMENTACION | B5: 1 | C5: =IF('DEFINICION INDICADORES'!E18="","",'DEFINICION INDICADORES'!E18) -> Programa adecuado y adaptado | D5: Piensos adecuados y suficientes. Buen manejo. Adaptados a las diferentes producciones. Equilibrio nutricional. Cobertura necesidades. Separa machos y hembras | E5: 4
D6: Piensos adecuados y suficientes. Buen manejo. Adaptados a las diferentes producciones. Equilibrio nutricional. Cobertura necesidades. | E6: 3
D7: Piensos equlibrados con cobertura nutricional. Tiene que adpatar los piensos a los lotes | E7: 2
D8: Manejo y grupos adaptados a los piensos. | E8: 1
D9: Desequilibrio nutricional o no cobertura de necesidades. | E9: 0
B10: 2 | C10: =IF('DEFINICION INDICADORES'!E19="","",'DEFINICION INDICADORES'!E19) -> Depósitos y silos pienso | D10: Suficientes depósitos o silos. Limpieza periódica de los mismos. | E10: 4
D11: Suficientes depósitos o silos pero limpieza no planificada | E11: 3
D12: Silos limpios pero insuficientes | E12: 2
D13: Insuficientes silos. Limpieza no planificada | E13: 1
D14: Silos claramente sucios e insuficientes | E14: 0
B15: 3 | C15: =IF('DEFINICION INDICADORES'!E20="","",'DEFINICION INDICADORES'!E20) -> Agua de bebida | D15: Calidad química y bacteriológica del agua. Acuíferos. Análisis y control periódicos. Sistema de tratamiento de aguas. | E15: 4
D16: Calidad química y bacteriológica del agua. Acuíferos. Sistema de tratamiento de aguas. | E16: 3
D17: Calidad química y bacteriológica del agua. Sistema de tratamiento de aguas. | E17: 2
D18: Calidad química y bacteriológica del agua insuficiente. Sistema de tratamiento de aguas. | E18: 1
D19: Calidad química y bacteriológica del agua insuficiente. Sistema de tratamiento de aguas no existe o insuficiente | E19: 0
B20: 4 | C20: =IF('DEFINICION INDICADORES'!E21="","",'DEFINICION INDICADORES'!E21) -> Depósitos y conducción de agua | D20: Suficientes depósitos adpatados al tamaño de la explotación.Doble via para tratamientos en todas las cuadras Limpieza periódica de tuberías. Ausencia de biofilm | E20: 4
D21: Suficientes depósitos adpatados al tamaño de la explotación.Doble via para tratamientos en algunas cuadras Limpieza periódica de tuberías. Ausencia de biofilm | E21: 3
D22: Depósitos adecuado y limpios pero con una sola linea de agua. Limpieza periódica de tuberías. Ausencia de biofilm | E22: 2
D23: Depósitos adecuado y limpios pero con una sola linea de agua. Limpieza no planificada de tuberías. Ausencia de biofilm | E23: 1
D24: Depósitos poco adecuados o sucios. Limpieza no planificada de tuberías. Presencia de biofilm | E24: 0
B25: 5 | C25: =IF('DEFINICION INDICADORES'!E22="","",'DEFINICION INDICADORES'!E22) -> Automatización adecuada | D25: Alimentación automatizada que asegure suministro de alimento suficiente. Tiempo empleado en suministro corto. No hay finos . Limpieza diaria | E25: 4
D26: Alimentación automatizada que asegure suministro de alimento suficiente. Tiempo empleado en suministro corto. Algo de finos pero limpieza diaria | E26: 3
D27: Alimentación automatizada que asegure suministro de alimento suficiente. Tiempo empleado en suministro corto. Algo de finos. No limpieza diaria | E27: 2
D28: Alimentación automatizada que asegure suministro de alimento suficiente. Tiempo empleado en suministro corto. Evidente presencia de finos que afectan al consumo | E28: 1
D29: Alimentación no automatizada . Tiempos en que los animales están sin pienso. | E29: 0
C32: INDICADORES | D32: CRITERIOS | F32: CAL
A33: =IF('DEFINICION INDICADORES'!B10="","",'DEFINICION INDICADORES'!B10) -> SANIDAD | B33: 1 | C33: =IF('DEFINICION INDICADORES'!E23="","",'DEFINICION INDICADORES'!E23) -> Ratios mortalidad y desvieje | D33: Mortalidad adultas y desvieje <15% | E33: 4
D34: Mortalidad adultas y desvieje entre 15% y 20% | E34: 3
D35: Mortalidad adulktas y desvieje entre 20 y 25% | E35: 2
D36: Mortalidad adultas y desvieje entre 25 y 40% | E36: 1
D37: Alta mortalidad y desvieje. Ambos > 40% | E37: 0
B38: 2 | C38: =IF('DEFINICION INDICADORES'!E24="","",'DEFINICION INDICADORES'!E24) -> Incidencia de abortos | D38: Abortos inferiores al 3% con vacuna de clamidia y mas agentes a la reposicion o/y adultas | E38: 4
D39: Abortos inferiores al 3% con vacuna de clamidia a la reposicion | E39: 3
D40: Abortos ocasionales con diagnostico claro y ovejas vacunadas | E40: 2
D41: Abortos habituales con dfagnostico claro de varios procesos | E41: 1
D42: Tormentas de abortos no diagnosticados | E42: 0
B43: 3 | C43: =IF('DEFINICION INDICADORES'!E25="","",'DEFINICION INDICADORES'!E25) -> Plan Sanitario | D43: Establecimiento de protocolos de prevención y curación. Cumplimiento de los mismos. Bioseguridad. | E43: 4
D44: Existe protocolo pero no siempre se cumple | E44: 3
D45: No existe protocolo pero obtiene unos resultados aceptables en sanidad. | E45: 2
D46: Vacunación o desparasitación ocasional | E46: 1
D47: No existe protocolo sanitario y no existe profilaxis ni siquiera ocasionalmente | E47: 0
B48: 4 | C48: =IF('DEFINICION INDICADORES'!E26="","",'DEFINICION INDICADORES'!E26) -> Incidencia de enfermedades crónicas | D48: Nula incidencia de procesos crónicos y medidas de vacunación y bioseguridad | E48: 4
D49: Escasa incidencia de procesos crónicos y medidas de vacunación y bioseguridad | E49: 3
D50: Baja incidencia de una enfermedad cronica predominante y diagnosticada | E50: 2
D51: Incidencia media de enfermedades crónicas con diagnostico | E51: 1
D52: Alta incidencia de enfermedades crónicas sin diagnostico claro | E52: 0
B53: 5 | C53: =IF('DEFINICION INDICADORES'!E27="","",'DEFINICION INDICADORES'!E27) -> Control animales extraños | D53: Programa DDD y su cumplimiento. Vigila perros y gatos de la explotación. Dersparasitación perros. Control animales externos sistematizado. | E53: 4
D54: Programa DDD y su cumplimiento. Vigila perros y gatos de la explotación. Dersparasitación perros. No controla siempre animales externos | E54: 3
D55: Programa DDD y su cumplimiento. Vigila perros y gatos de la explotación. No desparasita perros siempre. No controla siempre animales externos | E55: 2
D56: Programa DDD y su cumplimiento. No vigila perros ni gatos. | E56: 1
D57: Ningún control sobre animales externos. | E57: 0
C63: INDICADORES | D63: CRITERIOS | F63: CAL
A64: =IF('DEFINICION INDICADORES'!B11="","",'DEFINICION INDICADORES'!B11) -> INSTALACIONES | B64: 1 | C64: =IF('DEFINICION INDICADORES'!E28="","",'DEFINICION INDICADORES'!E28) -> Comederos y forrajeras | D64: Disponibilidad sobrada de comederos y pajeras , limpios y de facil acceso a los animales. Suelo limpio y seco en espacio de comederos y pajeras. | E64: 4
D65: Disponibilidad sobrada de comederos y pajeras , limpios y situados solo en una parte de la cuadra. Suelo limpio y seco. | E65: 3
D66: Adecuada disponibilidad de comederos y pajeras. Limpios y suelo algo húmedo | E66: 2
D67: Adecuada disponibilidad de comederos y pajeras. Sucios. | E67: 1
D68: Insuficiente disponibilidad de comederos y pajeras. | E68: 0
B69: 2 | C69: =IF('DEFINICION INDICADORES'!E29="","",'DEFINICION INDICADORES'!E29) -> Bebederos | D69: Número y/o superficie de bebederos sobrado respecto a la densidad de los animales. Bebederos limpios y bien repartidos en las cuadras. Suelo seco | E69: 4
D70: Número y/o superficie de bebederos adecuado respecto a la densidad de los animales. Bebederos limpios y bien repartidos en las cuadras. Suelo seco | E70: 3
D71: Número y/o superficie de bebederos adecuado respecto a la densidad de los animales. Bebederos limpios en un solo emplazamiento. Suelo seco | E71: 2
D72: Número y/o superficie de bebederos adecuado respecto a la densidad de los animales. Bebederos sucios o suelo húmedo | E72: 1
D73: Número y/o superficie de bebederos inadecuado respecto a la densidad de los animales. | E73: 0
B74: 3 | C74: =IF('DEFINICION INDICADORES'!E30="","",'DEFINICION INDICADORES'!E30) -> Carga Ambiental | D74: Detección de carga de amoniaco cuantificada y sin olor ni carga ambiental | E74: 4
D75: No olor ni carga ambiental. | E75: 3
D76: Olor ligeramente perceptible pero que no queda impregnado en la ropa | E76: 2
D77: Olor claramente perceptible. Quede impregnado en la ropa. | E77: 1
D78: Olor y carga ambiental claramente nocivo. | E78: 0
B79: 4 | C79: =IF('DEFINICION INDICADORES'!E31="","",'DEFINICION INDICADORES'!E31) -> Aislamiento cubierta | D79: Cubierta bien aislada. Sin condensación en la nave. Diferencias de temperatura y humedad con el exterior adecuadas según estación del año. Instrumentos de control | E79: 4
D80: Cubierta bien aislada. Sin condensación en la nave. Diferencias de temperatura y humedad con el exterior adecuadas según estación del año. | E80: 3
D81: Cubierta aislada pero con algún defecto. En general buenas coindiciones ambientales pero se nota el calor o frío extremo. | E81: 2
D82: Cubierta sin aislar pero no hay condensación y mantiene condiciones ambientales adecuadas | E82: 1
D83: Cubierta sin aislar. Condensación y/o mucho calor en verano | E83: 0
B84: 5 | C84: =IF('DEFINICION INDICADORES'!E32="","",'DEFINICION INDICADORES'!E32) -> Dimensionado y Ventilación | D84: Volumen estático, entradas ny salidas de aire y velocidad del aire adecuadas. Medición sistemática del ambiente d ela nave. | E84: 4
D85: Volumen estático, entradas y salidas de aire y velocidad del aire adecuadas. | E85: 3
D86: Volumen estático, entradas y salidas de aire adecuadas. Corrientes en invierno o poco aire en verano | E86: 2
D87: Volumen estático o entradas y salidas adecuadas. | E87: 1
D88: No cumple ni volumen estático ni entradas y salidas de aire. | E88: 0
C95: INDICADORES | D95: CRITERIOS | F95: CAL
A96: =IF('DEFINICION INDICADORES'!B12="","",'DEFINICION INDICADORES'!B12) -> BIENESTAR | B96: 1 | C96: =IF('DEFINICION INDICADORES'!E33="","",'DEFINICION INDICADORES'!E33) -> Densidad animal | D96: Mas de 2 m2 por oveja | E96: 4
D97: Entre 1.5 y 2 m2 por oveja | E97: 3
D98: Entre 1 y 1.5 m2 por oveja | E98: 2
D99: Menos de 1 m2 por oveja presente | E99: 1
D100: Animales hacinados | E100: 0
B101: 2 | C101: =IF('DEFINICION INDICADORES'!E34="","",'DEFINICION INDICADORES'!E34) -> Calidad de cama | D101: Cama limpia, seca y abundante y de renovado diario. | E101: 4
D102: Cama limpia, seca y abundante y de renovado no diario | E102: 3
D103: Cumple al menos dos caracteristicas | E103: 2
D104: Cumple solo una caracteristica | E104: 1
D105: No cumple ninguna de las tres características | E105: 0
B106: 3 | C106: =IF('DEFINICION INDICADORES'!E35="","",'DEFINICION INDICADORES'!E35) -> Alteración conducta. Estrés | D106: Más del 90% de animales tumbados y no se ven esterotipias | E106: 4
D107: Entre 80 y 90% de animales tumbados. No esterotipias | E107: 3
D108: Entre 60 y 80% de animales tumbados o se ven esteritipias | E108: 2
D109: Menos del 60% de animales tumbados o se ven esterotipias | E109: 1
D110: Esterotipias claras y animales estresados | E110: 0
B111: 4 | C111: =IF('DEFINICION INDICADORES'!E36="","",'DEFINICION INDICADORES'!E36) -> Estado de lana y pezuñas | D111: Nula incidencia de cojeras. Lana perfecta | E111: 4
D112: Escasa incidencia de cojeras. Lana perfecta | E112: 3
D113: Baja incidencia de cojeras con diagnostico claro y medidas de prevencion. Algunas ovejas peladas | E113: 2
D114: Evidente incidencia de cojeras sin diagnostico confirmado y/o ovejas con mala calidad de lana | E114: 1
D115: Alta incidencia de animales con mala apariencia y/o cojeras | E115: 0
B116: 5 | C116: =IF('DEFINICION INDICADORES'!E37="","",'DEFINICION INDICADORES'!E37) -> Estado externo animales, CC | D116: Capa limpia y brillante, estado corporal bueno y adecuado a animales de cebo | E116: 4
D117: Capa limpia y suciedad solo en pezuñas.. Buen estado corporal | E117: 3
D118: Suciedad hasta corvejones. Capa limpia y buen estado corporal. | E118: 2
D119: Capa sucia y buen estado corporal. | E119: 1
D120: Mal estado corporal | E120: 0
C127: INDICADORES | D127: CRITERIOS | F127: CAL
A128: =IF('DEFINICION INDICADORES'!B13="","",'DEFINICION INDICADORES'!B13) -> FORMACION Y REGISTRO | B128: 1 | C128: =IF('DEFINICION INDICADORES'!E38="","",'DEFINICION INDICADORES'!E38) -> Libro de Explotación actualizado | D128: Libro de esxplotación en el que figure el censo actualizado y movimientos de los animales. Entradas y salidas y tratamientos veterinarios. Entradas de alimentos | E128: 4
D129: Libro de esxplotación en el que figure el censo actualizado y movimientos de los animales. Entradas y salidas y tratamientos veterinarios. | E129: 3
D130: Libro de esxplotación en el que figure el censo actualizado. Entradas y salidas y tratamientos veterinarios. | E130: 2
D131: Libro de esxplotación en el que figure el censo actualizado.Tratamientos veterinarios. | E131: 1
D132: Libro de explotación inexistente o sin rellenar | E132: 0
B133: 2 | C133: =IF('DEFINICION INDICADORES'!E39="","",'DEFINICION INDICADORES'!E39) -> Formación del Ganadero | D133: Alta cualificación del ganadero. Conocimientos aplicados a la explotación. | E133: 4
D134: Titulación obligatoria y algunas titulaciones complementarias | E134: 3
D135: Titulación obligatoria solamente | E135: 2
D136: Sin titulación pero con larga experiencia | E136: 1
D137: Calificaión nula o inexistente | E137: 0
B138: 3 | C138: =IF('DEFINICION INDICADORES'!E40="","",'DEFINICION INDICADORES'!E40) -> Gestión Medioambiental | D138: Gestión de residuos documentada. Vacíos sanitarios de al menos dos veces al año con documentación cuplimentada.Tratamientos DDD realizados y documentados | E138: 4
D139: Documentación ajustada a la normativa y actualizada. | E139: 3
D140: Documentación existente pero no actualizada. Gestión medioambiental programada | E140: 2
D141: No hay documentación pero realiza una gestión medioambiental opcasional. | E141: 1
D142: No existen registros ni hay vacíos sanitarios programados | E142: 0
B143: 4 | C143: =IF('DEFINICION INDICADORES'!E41="","",'DEFINICION INDICADORES'!E41) -> Bioseguridad | D143: Medidas de bioseguridad excepcionales | E143: 4
D144: Medidas de bioseguridad adecuadas en alimentación, control de animales externos, cadaveres y limpieza | E144: 3
D145: Medidas de bioseguridad adecuadas en alimentación, control de animales externos, cadaveres. | E145: 2
D146: Medidas de bioseguridad adecuadas en alimentación , cadaveres. | E146: 1
D147: No hay medidad de bioseguridad | E147: 0
B148: 5 | C148: =IF('DEFINICION INDICADORES'!E42="","",'DEFINICION INDICADORES'!E42) -> Carga de Trabajo | D148: Mano de obra suficiente. Horarios laborales flexibles.Excelente cualificación y motivación | E148: 4
D149: Mano de obra suficiente. Horarios laborales flexibles. Motivación | E149: 3
D150: Mano de obra ajustada. Horarios laborales flexibles. Motivación | E150: 2
D151: Mano de obra ajustada. Horarios laborales poco flexibles. | E151: 1
D152: Mano de obra insuficiente y desmotivada | E152: 0
C159: INDICADORES | D159: CRITERIOS | F159: CAL
A160: =IF('DEFINICION INDICADORES'!B56="","",'DEFINICION INDICADORES'!B56) -> TRONCO "REDUCE" | B160: 1 | C160: =IF('DEFINICION INDICADORES'!E56="","",'DEFINICION INDICADORES'!E56) -> Disminucion del uso de piensos medicamentosos | D160: Eliminación o reducción de más del 90% del uso de piensos medicamentosos | E160: 4
D161: Reducción 50 - 90% | E161: 3
D162: Reducción 20 - 50% | E162: 2
D163: Reducción proyectada menor del 20% | E163: 1
D164: Sin reducción del uso de piensos medicamentosos | E164: 0
B165: 2 | C165: =IF('DEFINICION INDICADORES'!E57="","",'DEFINICION INDICADORES'!E57) -> Uso de antibióticos CATEGORIA D | D165: Ningún uso de antibióticos del grupo 2 | E165: 4
D166: Uso puntual de antibióticos del grupo 2 con justificación analítica | E166: 3
D167: Uso puntual de antibióticos del grupo 2 sin justificación analítica | E167: 2
D168: Uso por sistema (en brotes o metafilaxia) de 1 o más antibióticos del grupo 2 | E168: 1
D169: Sin criterio específico | E169: 0
B170: 3 | C170: =IF('DEFINICION INDICADORES'!E58="","",'DEFINICION INDICADORES'!E58) -> Plan-Informe sanitario. Auditorías anuales | D170: Plan e Informe Sanitario en vigor basado en datos evaluados y actualizados | E170: 4
D171: Plan -Informe Sanitario en vigor | E171: 3
D172: No hay Plan-Informe Sanitario pero se conoce la problemática y se actua en consecuencia | E172: 2
D173: No hay Plan-Informe Sanitario pero se conoce la problemática y no se toman medidas especiales | E173: 1
D174: No hay ningún Plan-Informe Sanitario | E174: 0
B175: 4 | C175: =IF('DEFINICION INDICADORES'!E59="","",'DEFINICION INDICADORES'!E59) -> % de animales con tratamiento metafiláctico | D175: No hay tratamientos metafilácticos. | E175: 4
D176: Tratamientos metafilácticos puntuales con justificación analítica a grupos reducidos | E176: 3
D177: Tratamientos metafilácticos puntuales con justificación analítica a varios grupos de animales | E177: 2
D178: Tratamientos metafilácticos constantes/habituales solo a la enfermería | E178: 1
D179: Tratamientos metafilácticos constantes/habituales | E179: 0
B180: 5 | C180: =IF('DEFINICION INDICADORES'!E60="","",'DEFINICION INDICADORES'!E60) -> Monitorización de explotación | D180: Hago un antibiograma al menos cada tres meses con gestión de orígenes y auditorías de BA | E180: 4
D181: Hago un antibiograma al menos cada tres meses y gestión de orígenes o auditorías de BA | E181: 3
D182: Hago un antibiograma al menos cada seis meses | E182: 2
D183: Hago un antibiograma puntualmente frente a una patología grave | E183: 1
D184: Rara vez realizo aislamientos y antibiogramas | E184: 0

Sheet DEFINIR TOMAS DE MUESTRAS
B3: DEFINIR TOMA DE MUESTRAS
A7: ORIGEN | B7: A PARTIR DE | C7: ENVIO /CONSERVACION
A8: DIGESTIVO | B8: HECES | C8: REFRIGERADO
A9: RESPIRATORIO | B9: NECROPSIA | C9: CONGELADO
A10: ARTICULAR | B10: ORGANOS | C10: FORMOL 10%
A11: ORINA | B11: RASPADO | C11: FRESCO
A12: CUTANEO | B12: HISOPO RECTAL
A13: ANIMAL ENTERO | B13: HISOPO NASAL
A14: METABOLICO | B14: HISOPO INTESTINAL
A15: NEUROLOGICO | B15: HISOPO
A16: MAMARIO | B16: LIQUIDO ARTICULAR
B17: EXUDADO
B18: ORINA ENTERA
B19: CADAVER ENTERO
B20: SUERO SANGUINEO
B21: SUERO + ANTICOAGULANTE
B22: LECHE UBRE
B23: LECHE TANQUE
B24: LAVADO TRAQUEO BRONQ.
A32: PLAN DE MUESTREO
A33: Nº MUESTRA | B33: ORIGEN | C33: A PARTIR DE | D33: Nº DE MUESTRAS | E33: PERIODICIDAD (CADA ….DIAS) | F33: ENVIO /CONSERVACION | G33: OBSERVACIONES

Sheet INFORME TOMA DE MUESTRAS
B5: INFORME TOMA DE MUESTRAS
C7: GANADERO
C8: FECHA
C9: TIPO EXPLOTACION
A12: Nº | B12: ORIGEN | C12: A PARTIR DE | D12: Nº DE MUESTRAS | E12: PERIODICIDAD (CADA ….DIAS) | F12: ENVIO/CONSERVACION
A13: =IF('DEFINIR TOMAS DE MUESTRAS'!A34="","",'DEFINIR TOMAS DE MUESTRAS'!A34) ->  | B13: =IF('DEFINIR TOMAS DE MUESTRAS'!B34="","",'DEFINIR TOMAS DE MUESTRAS'!B34) ->  | C13: =IF('DEFINIR TOMAS DE MUESTRAS'!C34="","",'DEFINIR TOMAS DE MUESTRAS'!C34) ->  | D13: =IF('DEFINIR TOMAS DE MUESTRAS'!D34="","",'DEFINIR TOMAS DE MUESTRAS'!D34) ->  | E13: =IF('DEFINIR TOMAS DE MUESTRAS'!E34="","",'DEFINIR TOMAS DE MUESTRAS'!E34) ->  | F13: =IF('DEFINIR TOMAS DE MUESTRAS'!F34="","",'DEFINIR TOMAS DE MUESTRAS'!F34) -> 
C14: =IF('DEFINIR TOMAS DE MUESTRAS'!G34="","",'DEFINIR TOMAS DE MUESTRAS'!G34) -> 
A16: =IF('DEFINIR TOMAS DE MUESTRAS'!A35="","",'DEFINIR TOMAS DE MUESTRAS'!A35) ->  | B16: =IF('DEFINIR TOMAS DE MUESTRAS'!B35="","",'DEFINIR TOMAS DE MUESTRAS'!B35) ->  | C16: =IF('DEFINIR TOMAS DE MUESTRAS'!C35="","",'DEFINIR TOMAS DE MUESTRAS'!C35) ->  | D16: =IF('DEFINIR TOMAS DE MUESTRAS'!D35="","",'DEFINIR TOMAS DE MUESTRAS'!D35) ->  | E16: =IF('DEFINIR TOMAS DE MUESTRAS'!E35="","",'DEFINIR TOMAS DE MUESTRAS'!E35) ->  | F16: =IF('DEFINIR TOMAS DE MUESTRAS'!F35="","",'DEFINIR TOMAS DE MUESTRAS'!F35) -> 
C17: =IF('DEFINIR TOMAS DE MUESTRAS'!G35="","",'DEFINIR TOMAS DE MUESTRAS'!G35) -> 
A19: =IF('DEFINIR TOMAS DE MUESTRAS'!A36="","",'DEFINIR TOMAS DE MUESTRAS'!A36) ->  | B19: =IF('DEFINIR TOMAS DE MUESTRAS'!B36="","",'DEFINIR TOMAS DE MUESTRAS'!B36) ->  | C19: =IF('DEFINIR TOMAS DE MUESTRAS'!C36="","",'DEFINIR TOMAS DE MUESTRAS'!C36) ->  | D19: =IF('DEFINIR TOMAS DE MUESTRAS'!D36="","",'DEFINIR TOMAS DE MUESTRAS'!D36) ->  | E19: =IF('DEFINIR TOMAS DE MUESTRAS'!E36="","",'DEFINIR TOMAS DE MUESTRAS'!E36) ->  | F19: =IF('DEFINIR TOMAS DE MUESTRAS'!F36="","",'DEFINIR TOMAS DE MUESTRAS'!F36) -> 
C20: =IF('DEFINIR TOMAS DE MUESTRAS'!G36="","",'DEFINIR TOMAS DE MUESTRAS'!G36) -> 
A22: =IF('DEFINIR TOMAS DE MUESTRAS'!A37="","",'DEFINIR TOMAS DE MUESTRAS'!A37) ->  | B22: =IF('DEFINIR TOMAS DE MUESTRAS'!B37="","",'DEFINIR TOMAS DE MUESTRAS'!B37) ->  | C22: =IF('DEFINIR TOMAS DE MUESTRAS'!C37="","",'DEFINIR TOMAS DE MUESTRAS'!C37) ->  | D22: =IF('DEFINIR TOMAS DE MUESTRAS'!D37="","",'DEFINIR TOMAS DE MUESTRAS'!D37) ->  | E22: =IF('DEFINIR TOMAS DE MUESTRAS'!E37="","",'DEFINIR TOMAS DE MUESTRAS'!E37) ->  | F22: =IF('DEFINIR TOMAS DE MUESTRAS'!F37="","",'DEFINIR TOMAS DE MUESTRAS'!F37) -> 
C23: =IF('DEFINIR TOMAS DE MUESTRAS'!G37="","",'DEFINIR TOMAS DE MUESTRAS'!G37) -> 
A25: =IF('DEFINIR TOMAS DE MUESTRAS'!A38="","",'DEFINIR TOMAS DE MUESTRAS'!A38) ->  | B25: =IF('DEFINIR TOMAS DE MUESTRAS'!B38="","",'DEFINIR TOMAS DE MUESTRAS'!B38) ->  | C25: =IF('DEFINIR TOMAS DE MUESTRAS'!C38="","",'DEFINIR TOMAS DE MUESTRAS'!C38) ->  | D25: =IF('DEFINIR TOMAS DE MUESTRAS'!D38="","",'DEFINIR TOMAS DE MUESTRAS'!D38) ->  | E25: =IF('DEFINIR TOMAS DE MUESTRAS'!E38="","",'DEFINIR TOMAS DE MUESTRAS'!E38) ->  | F25: =IF('DEFINIR TOMAS DE MUESTRAS'!F38="","",'DEFINIR TOMAS DE MUESTRAS'!F38) -> 
C26: =IF('DEFINIR TOMAS DE MUESTRAS'!G38="","",'DEFINIR TOMAS DE MUESTRAS'!G38) -> 
A28: =IF('DEFINIR TOMAS DE MUESTRAS'!A39="","",'DEFINIR TOMAS DE MUESTRAS'!A39) ->  | B28: =IF('DEFINIR TOMAS DE MUESTRAS'!B39="","",'DEFINIR TOMAS DE MUESTRAS'!B39) ->  | C28: =IF('DEFINIR TOMAS DE MUESTRAS'!C39="","",'DEFINIR TOMAS DE MUESTRAS'!C39) ->  | D28: =IF('DEFINIR TOMAS DE MUESTRAS'!D39="","",'DEFINIR TOMAS DE MUESTRAS'!D39) ->  | E28: =IF('DEFINIR TOMAS DE MUESTRAS'!E39="","",'DEFINIR TOMAS DE MUESTRAS'!E39) ->  | F28: =IF('DEFINIR TOMAS DE MUESTRAS'!F39="","",'DEFINIR TOMAS DE MUESTRAS'!F39) -> 
C29: =IF('DEFINIR TOMAS DE MUESTRAS'!G39="","",'DEFINIR TOMAS DE MUESTRAS'!G39) -> 
A31: =IF('DEFINIR TOMAS DE MUESTRAS'!A40="","",'DEFINIR TOMAS DE MUESTRAS'!A40) ->  | B31: =IF('DEFINIR TOMAS DE MUESTRAS'!B40="","",'DEFINIR TOMAS DE MUESTRAS'!B40) ->  | C31: =IF('DEFINIR TOMAS DE MUESTRAS'!C40="","",'DEFINIR TOMAS DE MUESTRAS'!C40) ->  | D31: =IF('DEFINIR TOMAS DE MUESTRAS'!D40="","",'DEFINIR TOMAS DE MUESTRAS'!D40) ->  | E31: =IF('DEFINIR TOMAS DE MUESTRAS'!E40="","",'DEFINIR TOMAS DE MUESTRAS'!E40) ->  | F31: =IF('DEFINIR TOMAS DE MUESTRAS'!F40="","",'DEFINIR TOMAS DE MUESTRAS'!F40) -> 
C32: =IF('DEFINIR TOMAS DE MUESTRAS'!G40="","",'DEFINIR TOMAS DE MUESTRAS'!G40) -> 
A34: =IF('DEFINIR TOMAS DE MUESTRAS'!A41="","",'DEFINIR TOMAS DE MUESTRAS'!A41) ->  | B34: =IF('DEFINIR TOMAS DE MUESTRAS'!B41="","",'DEFINIR TOMAS DE MUESTRAS'!B41) ->  | C34: =IF('DEFINIR TOMAS DE MUESTRAS'!C41="","",'DEFINIR TOMAS DE MUESTRAS'!C41) ->  | D34: =IF('DEFINIR TOMAS DE MUESTRAS'!D41="","",'DEFINIR TOMAS DE MUESTRAS'!D41) ->  | E34: =IF('DEFINIR TOMAS DE MUESTRAS'!E41="","",'DEFINIR TOMAS DE MUESTRAS'!E41) ->  | F34: =IF('DEFINIR TOMAS DE MUESTRAS'!F41="","",'DEFINIR TOMAS DE MUESTRAS'!F41) -> 
C35: =IF('DEFINIR TOMAS DE MUESTRAS'!G41="","",'DEFINIR TOMAS DE MUESTRAS'!G41) -> 
A37: =IF('DEFINIR TOMAS DE MUESTRAS'!A42="","",'DEFINIR TOMAS DE MUESTRAS'!A42) ->  | B37: =IF('DEFINIR TOMAS DE MUESTRAS'!B42="","",'DEFINIR TOMAS DE MUESTRAS'!B42) ->  | C37: =IF('DEFINIR TOMAS DE MUESTRAS'!C42="","",'DEFINIR TOMAS DE MUESTRAS'!C42) ->  | D37: =IF('DEFINIR TOMAS DE MUESTRAS'!D42="","",'DEFINIR TOMAS DE MUESTRAS'!D42) ->  | E37: =IF('DEFINIR TOMAS DE MUESTRAS'!E42="","",'DEFINIR TOMAS DE MUESTRAS'!E42) ->  | F37: =IF('DEFINIR TOMAS DE MUESTRAS'!F42="","",'DEFINIR TOMAS DE MUESTRAS'!F42) -> 
C38: =IF('DEFINIR TOMAS DE MUESTRAS'!G42="","",'DEFINIR TOMAS DE MUESTRAS'!G42) -> 
A40: =IF('DEFINIR TOMAS DE MUESTRAS'!A43="","",'DEFINIR TOMAS DE MUESTRAS'!A43) ->  | B40: =IF('DEFINIR TOMAS DE MUESTRAS'!B43="","",'DEFINIR TOMAS DE MUESTRAS'!B43) ->  | C40: =IF('DEFINIR TOMAS DE MUESTRAS'!C43="","",'DEFINIR TOMAS DE MUESTRAS'!C43) ->  | D40: =IF('DEFINIR TOMAS DE MUESTRAS'!D43="","",'DEFINIR TOMAS DE MUESTRAS'!D43) ->  | E40: =IF('DEFINIR TOMAS DE MUESTRAS'!E43="","",'DEFINIR TOMAS DE MUESTRAS'!E43) ->  | F40: =IF('DEFINIR TOMAS DE MUESTRAS'!F43="","",'DEFINIR TOMAS DE MUESTRAS'!F43) -> 
C41: =IF('DEFINIR TOMAS DE MUESTRAS'!G43="","",'DEFINIR TOMAS DE MUESTRAS'!G43) -> 

Sheet CALENDARIO TOMA DE MUESTRAS
C5: CALENDARIO TOMA DE MUESTRAS
C7: GANADERO | D7: =IF('INFORME TOMA DE MUESTRAS'!D7:E7="","",'INFORME TOMA DE MUESTRAS'!D7:E7) -> 
C8: FECHA | D8: =IF('INFORME TOMA DE MUESTRAS'!D8:E8="","",'INFORME TOMA DE MUESTRAS'!D8:E8) -> 
C9: TIPO EXPLOTACION | D9: =IF('INFORME TOMA DE MUESTRAS'!D9:E9="","",'INFORME TOMA DE MUESTRAS'!D9:E9) -> 
D10: =IF('INFORME TOMA DE MUESTRAS'!D10:E10="","",'INFORME TOMA DE MUESTRAS'!D10:E10) -> 
C13: TIPO MUESTRA | F13: =IF(D13="","",'ENLACES DATOS'!B66) ->  | H13: =IF(D13="","",'ENLACES DATOS'!E66) -> 
D14: =IF(D13="","",'ENLACES DATOS'!K66) ->  | E14: =IF(A14="","",'ENLACES DATOS'!#REF!) ->  | F14: =IF(B14="","",'ENLACES DATOS'!A67) ->  | G14: =IF(C14="","",'ENLACES DATOS'!B67) ->  | H14: =IF(D14="","",'ENLACES DATOS'!E67) -> 
D17: FECHA | F17: Nº MUESTRAS | H17: ENVIO
D19: =IF(D13="","",'ENLACES DATOS'!G52) ->  | F19: =IF(D13="","",'ENLACES DATOS'!F66) ->  | H19: =IF(D13="","",'ENLACES DATOS'!J66) -> 
D22: =IF($D$13="","",'ENLACES DATOS'!E68) ->  | F22: =IF($D$13="","",'ENLACES DATOS'!F68) ->  | H22: =IF(D13="","",'ENLACES DATOS'!J68) -> 
D25: =IF($D$13="","",'ENLACES DATOS'!E69) ->  | F25: =IF($D$13="","",'ENLACES DATOS'!F69) ->  | H25: =IF(D13="","",'ENLACES DATOS'!J69) -> 
D28: =IF($D$13="","",'ENLACES DATOS'!E70) ->  | F28: =IF($D$13="","",'ENLACES DATOS'!F70) ->  | H28: =IF($D$13="","",'ENLACES DATOS'!J70) -> 
D31: =IF($D$13="","",'ENLACES DATOS'!E71) ->  | F31: =IF($D$13="","",'ENLACES DATOS'!F71) ->  | H31: =IF($D$13="","",'ENLACES DATOS'!J71) -> 
D34: =IF($D$13="","",'ENLACES DATOS'!E72) ->  | F34: =IF($D$13="","",'ENLACES DATOS'!F72) ->  | H34: =IF($D$13="","",'ENLACES DATOS'!J72) -> 
D37: =IF($D$13="","",'ENLACES DATOS'!E73) ->  | F37: =IF($D$13="","",'ENLACES DATOS'!F73) ->  | H37: =IF($D$13="","",'ENLACES DATOS'!J73) -> 

Sheet MEDICACIONES AGUA
A4: MEDICACIONES AGUA | F4: =A4 -> MEDICACIONES AGUA
A6: GANADERO | F6: GANADERO | G6: =IF(B6="","",B6) -> 
A7: FECHA | F7: FECHA | G7: =IF(B7="","",B7) -> 
A8: TIPO EXPLOTACION | F8: TIPO EXPLOTACION | G8: =IF(B8="","",B8) -> 
A11: PRODUCTO
A13: CALCULO MEDICAMENTO NECESARIO
A14: ENTRADA DATOS TRATAMIENTO | B14: Nº ANIMALES A TRATAR (N)
B15: PESO VIVO MEDIO (KgPV)
B16: DOSIS RECOMENDADA (D: mg/KgPV .dia)
B17: CONCENTRACION MED. (grP.activo/kg)
B18: CONSUMO AGUA POR ANIMAL Y DIA (litros)
A20: CALCULOS | B20: KG MEDICAMENTO AL DIA (Kg) | C20: =IF(C14="","",(C14*C15*C16)/(C17*1000)) -> 
B21: LITROS AGUA/DIA (litros) | C21: =IF(C18="","",(C14*C18)) -> 
A24: CALCULO PREMEZCLA DOSIFICADOR
A25: ENTRADA DATOS DOSIFICADOR | B25: REGULACION DEL DOSIFICADOR (%)
B26: LITROS AGUA/DIA (litros)
A28: CALCULOS | B28: LITROS SOLUCION PREVIA (litros) | C28: =IF(C25="","",(C26*C25)) -> 
A31: CALCULO CAPACIDAD DEPOSITO
A32: DEPOSITO CILINDRICO | B32: RADIO BASE (metros)
B33: ALTURA DEPOSITO (metros)
A35: CALCULOS | B35: LITROS DE CAPACIDAD DE DEPOSITO (litros) | C35: =IF(C32="","",(3.1416*C32*C32*C33*1000)) -> 
A38: DEPOSITO ORTOEDRICO | B38: LONGITUD DEPOSITO (metros)
B39: ANCHURA DEPOSITO (metros)
B40: ALTURA DEPOSITO (metros)
A42: CALCULOS | B42: LITROS DE CAPACIDAD DE DEPOSITO (litros) | C42: =IF(C38="","",(C38*C39*C40*1000)) -> 

Sheet HOJA DIAGNOSTICO REDUCE
B4: EVALUACIÓN OBJETIVO "REDUCE" | G4: =B4 -> EVALUACIÓN OBJETIVO "REDUCE"
B7: GANADERO | G7: GANADERO | I7: =IF(D7="","",D7) -> 
B8: FECHA DIAGNOSTICO | G8: FECHA DIAGNOSTICO | I8: =IF(D8="","",D8) -> 
B9: TIPO EXPLOTACION | D9: =IF('DEFINICION INDICADORES'!E15="","",'DEFINICION INDICADORES'!E15) -> CEBO CORDEROS | G9: TIPO EXPLOTACION | I9: =IF(D9="","",D9) -> CEBO CORDEROS
B12: BASES | D12: INDICADORES | E12: CALIF. (0-4) | G12: COMENTARIOS
B13: =IF('DEFINICION INDICADORES'!B56="","",'DEFINICION INDICADORES'!B56) -> TRONCO "REDUCE" | C13: 1 | D13: =IF('DEFINICION INDICADORES'!E56="","",'DEFINICION INDICADORES'!E56) -> Disminucion del uso de piensos medicamentosos
C14: 2 | D14: =IF('DEFINICION INDICADORES'!E57="","",'DEFINICION INDICADORES'!E57) -> Uso de antibióticos CATEGORIA D
C15: 3 | D15: =IF('DEFINICION INDICADORES'!E58="","",'DEFINICION INDICADORES'!E58) -> Plan-Informe sanitario. Auditorías anuales
C16: 4 | D16: =IF('DEFINICION INDICADORES'!E59="","",'DEFINICION INDICADORES'!E59) -> % de animales con tratamiento metafiláctico
C17: 5 | D17: =IF('DEFINICION INDICADORES'!E60="","",'DEFINICION INDICADORES'!E60) -> Monitorización de explotación
G19: CALIFICACION | I19: RESPECTO A MÁXIMO | J19: =IF('ENLACES DATOS'!H106="","",'ENLACES DATOS'!H106) -> 

Sheet HOJA DE AYUDA
B4: AYUDA E INSTRUCCIONES
B8: 1.- DEFINICION INDICADORES Y CRITERIOS DE DIAGNOSTICO
B10: https://youtu.be/f82hZqPnVF4
B12: 2.- DIAGNOSTICO DE GRANJA. INTERPRETACION DE AUDITORÍA
B14: https://youtu.be/dOeZQi3qRmg
B17: 3.- CALCULOS UTILES PARA LOS TRATAMIENTOS EN AGUA DE BEBIDA
B19: https://youtu.be/GHsiaquCqPQ
B22: 4.- PLAN DE TOMA DE MUESTRAS. MONITORIZACIÓN
B24: https://youtu.be/RY3zfkt0YP4
B27: 5.- AUDITORÍA PLAN REDUCE
B29: https://youtu.be/1IqzgOWfpQU
B32: 6.- PLAN DE EXPLOTACION
B34: https://youtu.be/7-rCTV6Etz4

Sheet INFORME EXPLOTACION CREAR
B4: CREAR INFORME EXPLOTACIÓN
B6: COMENTARIOS | C6: PROPUESTOS | D6: ALTERNATIVOS
B8: =IF('DEFINICION INDICADORES'!B18="","",'DEFINICION INDICADORES'!B18) -> ALIMENTACION | C8: =IF('ENLACES DATOS'!AI3="","",'ENLACES DATOS'!AI3) -> Piensos adecuados y suficientes. Buen manejo. Adaptados a las diferentes producciones. Equilibrio nutricional. Cobertura necesidades. Separa machos y hembras
C9: =IF('ENLACES DATOS'!AI4="","",'ENLACES DATOS'!AI4) -> Suficientes depósitos o silos. Limpieza periódica de los mismos.
C10: =IF('ENLACES DATOS'!AI5="","",'ENLACES DATOS'!AI5) -> Calidad química y bacteriológica del agua. Acuíferos. Análisis y control periódicos. Sistema de tratamiento de aguas. | D10: Recomendamos analiticas cada 6 meses de agua
C11: =IF('ENLACES DATOS'!AI6="","",'ENLACES DATOS'!AI6) -> Suficientes depósitos adpatados al tamaño de la explotación.Doble via para tratamientos en algunas cuadras Limpieza periódica de tuberías. Ausencia de biofilm
C12: =IF('ENLACES DATOS'!AI7="","",'ENLACES DATOS'!AI7) -> Alimentación automatizada que asegure suministro de alimento suficiente. Tiempo empleado en suministro corto. Algo de finos. No limpieza diaria
B13: =IF('DEFINICION INDICADORES'!B23="","",'DEFINICION INDICADORES'!B23) -> SANIDAD | C13: =IF('ENLACES DATOS'!AI8="","",'ENLACES DATOS'!AI8) -> Mortalidad adultas y desvieje <15%
C14: =IF('ENLACES DATOS'!AI9="","",'ENLACES DATOS'!AI9) -> Abortos habituales con dfagnostico claro de varios procesos
C15: =IF('ENLACES DATOS'!AI10="","",'ENLACES DATOS'!AI10) -> Vacunación o desparasitación ocasional
C16: =IF('ENLACES DATOS'!AI11="","",'ENLACES DATOS'!AI11) -> Incidencia media de enfermedades crónicas con diagnostico
C17: =IF('ENLACES DATOS'!AI12="","",'ENLACES DATOS'!AI12) -> Programa DDD y su cumplimiento. Vigila perros y gatos de la explotación. No desparasita perros siempre. No controla siempre animales externos
B18: =IF('DEFINICION INDICADORES'!B28="","",'DEFINICION INDICADORES'!B28) -> INSTALACIONES | C18: =IF('ENLACES DATOS'!AI13="","",'ENLACES DATOS'!AI13) -> Disponibilidad sobrada de comederos y pajeras , limpios y situados solo en una parte de la cuadra. Suelo limpio y seco.
C19: =IF('ENLACES DATOS'!AI14="","",'ENLACES DATOS'!AI14) -> Número y/o superficie de bebederos adecuado respecto a la densidad de los animales. Bebederos limpios en un solo emplazamiento. Suelo seco
C20: =IF('ENLACES DATOS'!AI15="","",'ENLACES DATOS'!AI15) -> Olor ligeramente perceptible pero que no queda impregnado en la ropa
C21: =IF('ENLACES DATOS'!AI16="","",'ENLACES DATOS'!AI16) -> Cubierta aislada pero con algún defecto. En general buenas coindiciones ambientales pero se nota el calor o frío extremo.
C22: =IF('ENLACES DATOS'!AI17="","",'ENLACES DATOS'!AI17) -> Volumen estático, entradas y salidas de aire y velocidad del aire adecuadas.
B23: =IF('DEFINICION INDICADORES'!B33="","",'DEFINICION INDICADORES'!B33) -> BIENESTAR | C23: =IF('ENLACES DATOS'!AI18="","",'ENLACES DATOS'!AI18) -> Entre 1.5 y 2 m2 por oveja
C24: =IF('ENLACES DATOS'!AI19="","",'ENLACES DATOS'!AI19) -> Cama limpia, seca y abundante y de renovado no diario
C25: =IF('ENLACES DATOS'!AI20="","",'ENLACES DATOS'!AI20) -> Entre 80 y 90% de animales tumbados. No esterotipias
C26: =IF('ENLACES DATOS'!AI21="","",'ENLACES DATOS'!AI21) -> Nula incidencia de cojeras. Lana perfecta
C27: =IF('ENLACES DATOS'!AI22="","",'ENLACES DATOS'!AI22) -> Capa limpia y suciedad solo en pezuñas.. Buen estado corporal
B28: =IF('DEFINICION INDICADORES'!B38="","",'DEFINICION INDICADORES'!B38) -> FORMACION Y REGISTRO | C28: =IF('ENLACES DATOS'!AI23="","",'ENLACES DATOS'!AI23) -> Libro de esxplotación en el que figure el censo actualizado y movimientos de los animales. Entradas y salidas y tratamientos veterinarios.
C29: =IF('ENLACES DATOS'!AI24="","",'ENLACES DATOS'!AI24) -> Titulación obligatoria y algunas titulaciones complementarias
C30: =IF('ENLACES DATOS'!AI25="","",'ENLACES DATOS'!AI25) -> Documentación ajustada a la normativa y actualizada.
C31: =IF('ENLACES DATOS'!AI26="","",'ENLACES DATOS'!AI26) -> Medidas de bioseguridad adecuadas en alimentación, control de animales externos, cadaveres.
C32: =IF('ENLACES DATOS'!AI27="","",'ENLACES DATOS'!AI27) -> Mano de obra suficiente. Horarios laborales flexibles. Motivación
B38: COMENTARIOS Y CONCLUSION

Sheet INFORME EXPLOTACION DEF
B4: INFORME EXPLOTACIÓN
B6: GANADERIA | C6: =IF('HOJA DIAGNOSTICO'!C7="","",'HOJA DIAGNOSTICO'!C7) -> ejemplo
B7: FECHA | C7: =IF('HOJA DIAGNOSTICO'!C8="","",'HOJA DIAGNOSTICO'!C8) -> 2021-09-01
F8: COMENTARIOS ADICIONALES Y CONCLUSIONES
B9: =IF('DEFINICION INDICADORES'!B18="","",'DEFINICION INDICADORES'!B18) -> ALIMENTACION | C9: =IF('ENLACES DATOS'!AK3="","",'ENLACES DATOS'!AK3) -> Piensos adecuados y suficientes. Buen manejo. Adaptados a las diferentes producciones. Equilibrio nutricional. Cobertura necesidades. Separa machos y hembras | F9: =IF('INFORME EXPLOTACION CREAR'!C39="","",'INFORME EXPLOTACION CREAR'!C39) -> 
C10: =IF('ENLACES DATOS'!AK4="","",'ENLACES DATOS'!AK4) -> Suficientes depósitos o silos. Limpieza periódica de los mismos.
C11: =IF('ENLACES DATOS'!AK5="","",'ENLACES DATOS'!AK5) -> Recomendamos analiticas cada 6 meses de agua
C12: =IF('ENLACES DATOS'!AK6="","",'ENLACES DATOS'!AK6) -> Suficientes depósitos adpatados al tamaño de la explotación.Doble via para tratamientos en algunas cuadras Limpieza periódica de tuberías. Ausencia de biofilm
C13: =IF('ENLACES DATOS'!AK7="","",'ENLACES DATOS'!AK7) -> Alimentación automatizada que asegure suministro de alimento suficiente. Tiempo empleado en suministro corto. Algo de finos. No limpieza diaria
B14: =IF('DEFINICION INDICADORES'!B23="","",'DEFINICION INDICADORES'!B23) -> SANIDAD | C14: =IF('ENLACES DATOS'!AK8="","",'ENLACES DATOS'!AK8) -> Mortalidad adultas y desvieje <15%
C15: =IF('ENLACES DATOS'!AK9="","",'ENLACES DATOS'!AK9) -> Abortos habituales con dfagnostico claro de varios procesos
C16: =IF('ENLACES DATOS'!AK10="","",'ENLACES DATOS'!AK10) -> Vacunación o desparasitación ocasional
C17: =IF('ENLACES DATOS'!AK11="","",'ENLACES DATOS'!AK11) -> Incidencia media de enfermedades crónicas con diagnostico
C18: =IF('ENLACES DATOS'!AK12="","",'ENLACES DATOS'!AK12) -> Programa DDD y su cumplimiento. Vigila perros y gatos de la explotación. No desparasita perros siempre. No controla siempre animales externos
B19: =IF('DEFINICION INDICADORES'!B28="","",'DEFINICION INDICADORES'!B28) -> INSTALACIONES | C19: =IF('ENLACES DATOS'!AK13="","",'ENLACES DATOS'!AK13) -> Disponibilidad sobrada de comederos y pajeras , limpios y situados solo en una parte de la cuadra. Suelo limpio y seco.
C20: =IF('ENLACES DATOS'!AK14="","",'ENLACES DATOS'!AK14) -> Número y/o superficie de bebederos adecuado respecto a la densidad de los animales. Bebederos limpios en un solo emplazamiento. Suelo seco
C21: =IF('ENLACES DATOS'!AK15="","",'ENLACES DATOS'!AK15) -> Olor ligeramente perceptible pero que no queda impregnado en la ropa
C22: =IF('ENLACES DATOS'!AK16="","",'ENLACES DATOS'!AK16) -> Cubierta aislada pero con algún defecto. En general buenas coindiciones ambientales pero se nota el calor o frío extremo.
C23: =IF('ENLACES DATOS'!AK17="","",'ENLACES DATOS'!AK17) -> Volumen estático, entradas y salidas de aire y velocidad del aire adecuadas.
B24: =IF('DEFINICION INDICADORES'!B33="","",'DEFINICION INDICADORES'!B33) -> BIENESTAR | C24: =IF('ENLACES DATOS'!AK18="","",'ENLACES DATOS'!AK18) -> Entre 1.5 y 2 m2 por oveja
C25: =IF('ENLACES DATOS'!AK19="","",'ENLACES DATOS'!AK19) -> Cama limpia, seca y abundante y de renovado no diario
C26: =IF('ENLACES DATOS'!AK20="","",'ENLACES DATOS'!AK20) -> Entre 80 y 90% de animales tumbados. No esterotipias
C27: =IF('ENLACES DATOS'!AK21="","",'ENLACES DATOS'!AK21) -> Nula incidencia de cojeras. Lana perfecta
C28: =IF('ENLACES DATOS'!AK22="","",'ENLACES DATOS'!AK22) -> Capa limpia y suciedad solo en pezuñas.. Buen estado corporal
B29: =IF('DEFINICION INDICADORES'!B38="","",'DEFINICION INDICADORES'!B38) -> FORMACION Y REGISTRO | C29: =IF('ENLACES DATOS'!AK23="","",'ENLACES DATOS'!AK23) -> Libro de esxplotación en el que figure el censo actualizado y movimientos de los animales. Entradas y salidas y tratamientos veterinarios.
C30: =IF('ENLACES DATOS'!AK24="","",'ENLACES DATOS'!AK24) -> Titulación obligatoria y algunas titulaciones complementarias
C31: =IF('ENLACES DATOS'!AK25="","",'ENLACES DATOS'!AK25) -> Documentación ajustada a la normativa y actualizada.
C32: =IF('ENLACES DATOS'!AK26="","",'ENLACES DATOS'!AK26) -> Medidas de bioseguridad adecuadas en alimentación, control de animales externos, cadaveres.
C33: =IF('ENLACES DATOS'!AK27="","",'ENLACES DATOS'!AK27) -> Mano de obra suficiente. Horarios laborales flexibles. Motivación
